Workbook

Sheet ВЕДОМОСТЬ Лященко
D1: рабочии дни | E1: 21 | H1: Расчётная ведомость сш . им. ЛЯЩЕНКО
A2: № п/п | B2: № п/п (для формулы) | C2: Ф. И.О. | E2: Ч/cт | F2: % | G2: отр дн | H2: Уч | I2: Пч | J2: Мч/Вч | K2: З-Уч | L2: З-Пч | M2: З- Мч /Вч | N2: Гос яз | O2: На дому | P2: Кр/ч | Q2: Круж по тариф
C3: 0 | H3: ОС | I3: ДС | J3: ЧО,ТС | K3: ЗОС | L3: ЗДС | M3: ЗЧО,ТС | N3: тил | O3: уйдо окуу | P3: ийирим
B4: 1 | C4: Перегородова Ольга Ивановна | E4: 67.5 | F4: 0.3 | H4: =ROUND(IF($G4>0,IFERROR(INDEX(Табель!$E:$E,MATCH('ВЕДОМОСТЬ Лященко'!$B4,Табель!$A:$A,0)+MATCH('ВЕДОМОСТЬ Лященко'!H$3,Табель!$D$6:$D$14,0)-1),"")*4.2/$E$1*$G4,IFERROR(INDEX(Табель!$H:$H,MATCH('ВЕДОМОСТЬ Лященко'!$B4,Табель!$A:$A,0)+MATCH('ВЕДОМОСТЬ Лященко'!H$3,Табель!$D$6:$D$14,0)-1),"")),2) -> 0 | I4: =ROUND(IF($G4>0,IFERROR(INDEX(Табель!$E:$E,MATCH('ВЕДОМОСТЬ Лященко'!$B4,Табель!$A:$A,0)+MATCH('ВЕДОМОСТЬ Лященко'!I$3,Табель!$D$6:$D$14,0)-1),"")*4.2/$E$1*$G4,IFERROR(INDEX(Табель!$H:$H,MATCH('ВЕДОМОСТЬ Лященко'!$B4,Табель!$A:$A,0)+MATCH('ВЕДОМОСТЬ Лященко'!I$3,Табель!$D$6:$D$14,0)-1),"")),2) -> 0 | J4: =ROUND(IF($G4>0,IFERROR(INDEX(Табель!$E:$E,MATCH('ВЕДОМОСТЬ Лященко'!$B4,Табель!$A:$A,0)+MATCH('ВЕДОМОСТЬ Лященко'!J$3,Табель!$D$6:$D$14,0)-1),"")*4.2/$E$1*$G4,IFERROR(INDEX(Табель!$H:$H,MATCH('ВЕДОМОСТЬ Лященко'!$B4,Табель!$A:$A,0)+MATCH('ВЕДОМОСТЬ Лященко'!J$3,Табель!$D$6:$D$14,0)-1),"")),2) -> 0 | K4: =ROUND(IF($G4>0,IFERROR(INDEX(Табель!$E:$E,MATCH('ВЕДОМОСТЬ Лященко'!$B4,Табель!$A:$A,0)+MATCH('ВЕДОМОСТЬ Лященко'!K$3,Табель!$D$6:$D$14,0)-1),"")*4.2/$E$1*$G4,IFERROR(INDEX(Табель!$H:$H,MATCH('ВЕДОМОСТЬ Лященко'!$B4,Табель!$A:$A,0)+MATCH('ВЕДОМОСТЬ Лященко'!K$3,Табель!$D$6:$D$14,0)-1),"")),2) -> 0 | L4: =ROUND(IF($G4>0,IFERROR(INDEX(Табель!$E:$E,MATCH('ВЕДОМОСТЬ Лященко'!$B4,Табель!$A:$A,0)+MATCH('ВЕДОМОСТЬ Лященко'!L$3,Табель!$D$6:$D$14,0)-1),"")*4.2/$E$1*$G4,IFERROR(INDEX(Табель!$H:$H,MATCH('ВЕДОМОСТЬ Лященко'!$B4,Табель!$A:$A,0)+MATCH('ВЕДОМОСТЬ Лященко'!L$3,Табель!$D$6:$D$14,0)-1),"")),2) -> 0 | M4: =ROUND(IF($G4>0,IFERROR(INDEX(Табель!$E:$E,MATCH('ВЕДОМОСТЬ Лященко'!$B4,Табель!$A:$A,0)+MATCH('ВЕДОМОСТЬ Лященко'!M$3,Табель!$D$6:$D$14,0)-1),"")*4.2/$E$1*$G4,IFERROR(INDEX(Табель!$H:$H,MATCH('ВЕДОМОСТЬ Лященко'!$B4,Табель!$A:$A,0)+MATCH('ВЕДОМОСТЬ Лященко'!M$3,Табель!$D$6:$D$14,0)-1),"")),2) -> 0 | N4: =ROUND(IF($G4=0,IFERROR(INDEX(Табель!$F:$F,MATCH('ВЕДОМОСТЬ Лященко'!$B4,Табель!$A:$A,0)+1),""),IFERROR(INDEX(Табель!$F:$F,MATCH('ВЕДОМОСТЬ Лященко'!$B4,Табель!$A:$A,0)+1),"")*4.2/$E$1*$G4),2) -> 0 | O4: =ROUND(IF($G4=0,IFERROR(INDEX(Табель!$G:$G,MATCH('ВЕДОМОСТЬ Лященко'!$B4,Табель!$A:$A,0)+1),""),IFERROR(INDEX(Табель!$G:$G,MATCH('ВЕДОМОСТЬ Лященко'!$B4,Табель!$A:$A,0)+1),"")*4.2/$E$1*$G4),2) -> 0 | P4: =IF($G4>0,IFERROR(INDEX(Табель!$E:$E,MATCH('ВЕДОМОСТЬ Лященко'!$B4,Табель!$A:$A,0)+MATCH('ВЕДОМОСТЬ Лященко'!P$3,Табель!$D$6:$D$14,0)-1),"")*4.2/$E$1*$G4,IFERROR(INDEX(Табель!$H:$H,MATCH('ВЕДОМОСТЬ Лященко'!$B4,Табель!$A:$A,0)+MATCH('ВЕДОМОСТЬ Лященко'!P$3,Табель!$D$6:$D$14,0)-1),"")) -> 0
B5: 14 | C5: Бочарникова Оксана Анатольевна | E5: 60 | F5: 0.1 | H5: =ROUND(IF($G5>0,IFERROR(INDEX(Табель!$E:$E,MATCH('ВЕДОМОСТЬ Лященко'!$B5,Табель!$A:$A,0)+MATCH('ВЕДОМОСТЬ Лященко'!H$3,Табель!$D$6:$D$14,0)-1),"")*4.2/$E$1*$G5,IFERROR(INDEX(Табель!$H:$H,MATCH('ВЕДОМОСТЬ Лященко'!$B5,Табель!$A:$A,0)+MATCH('ВЕДОМОСТЬ Лященко'!H$3,Табель!$D$6:$D$14,0)-1),"")),2) -> 45 | I5: =ROUND(IF($G5>0,IFERROR(INDEX(Табель!$E:$E,MATCH('ВЕДОМОСТЬ Лященко'!$B5,Табель!$A:$A,0)+MATCH('ВЕДОМОСТЬ Лященко'!I$3,Табель!$D$6:$D$14,0)-1),"")*4.2/$E$1*$G5,IFERROR(INDEX(Табель!$H:$H,MATCH('ВЕДОМОСТЬ Лященко'!$B5,Табель!$A:$A,0)+MATCH('ВЕДОМОСТЬ Лященко'!I$3,Табель!$D$6:$D$14,0)-1),"")),2) -> 8 | J5: =ROUND(IF($G5>0,IFERROR(INDEX(Табель!$E:$E,MATCH('ВЕДОМОСТЬ Лященко'!$B5,Табель!$A:$A,0)+MATCH('ВЕДОМОСТЬ Лященко'!J$3,Табель!$D$6:$D$14,0)-1),"")*4.2/$E$1*$G5,IFERROR(INDEX(Табель!$H:$H,MATCH('ВЕДОМОСТЬ Лященко'!$B5,Табель!$A:$A,0)+MATCH('ВЕДОМОСТЬ Лященко'!J$3,Табель!$D$6:$D$14,0)-1),"")),2) -> 26 | K5: =ROUND(IF($G5>0,IFERROR(INDEX(Табель!$E:$E,MATCH('ВЕДОМОСТЬ Лященко'!$B5,Табель!$A:$A,0)+MATCH('ВЕДОМОСТЬ Лященко'!K$3,Табель!$D$6:$D$14,0)-1),"")*4.2/$E$1*$G5,IFERROR(INDEX(Табель!$H:$H,MATCH('ВЕДОМОСТЬ Лященко'!$B5,Табель!$A:$A,0)+MATCH('ВЕДОМОСТЬ Лященко'!K$3,Табель!$D$6:$D$14,0)-1),"")),2) -> 0 | L5: =ROUND(IF($G5>0,IFERROR(INDEX(Табель!$E:$E,MATCH('ВЕДОМОСТЬ Лященко'!$B5,Табель!$A:$A,0)+MATCH('ВЕДОМОСТЬ Лященко'!L$3,Табель!$D$6:$D$14,0)-1),"")*4.2/$E$1*$G5,IFERROR(INDEX(Табель!$H:$H,MATCH('ВЕДОМОСТЬ Лященко'!$B5,Табель!$A:$A,0)+MATCH('ВЕДОМОСТЬ Лященко'!L$3,Табель!$D$6:$D$14,0)-1),"")),2) -> 0 | M5: =ROUND(IF($G5>0,IFERROR(INDEX(Табель!$E:$E,MATCH('ВЕДОМОСТЬ Лященко'!$B5,Табель!$A:$A,0)+MATCH('ВЕДОМОСТЬ Лященко'!M$3,Табель!$D$6:$D$14,0)-1),"")*4.2/$E$1*$G5,IFERROR(INDEX(Табель!$H:$H,MATCH('ВЕДОМОСТЬ Лященко'!$B5,Табель!$A:$A,0)+MATCH('ВЕДОМОСТЬ Лященко'!M$3,Табель!$D$6:$D$14,0)-1),"")),2) -> 0 | N5: =ROUND(IF($G5=0,IFERROR(INDEX(Табель!$F:$F,MATCH('ВЕДОМОСТЬ Лященко'!$B5,Табель!$A:$A,0)+1),""),IFERROR(INDEX(Табель!$F:$F,MATCH('ВЕДОМОСТЬ Лященко'!$B5,Табель!$A:$A,0)+1),"")*4.2/$E$1*$G5),2) -> 0 | O5: =ROUND(IF($G5=0,IFERROR(INDEX(Табель!$G:$G,MATCH('ВЕДОМОСТЬ Лященко'!$B5,Табель!$A:$A,0)+1),""),IFERROR(INDEX(Табель!$G:$G,MATCH('ВЕДОМОСТЬ Лященко'!$B5,Табель!$A:$A,0)+1),"")*4.2/$E$1*$G5),2) -> 0 | P5: =IF($G5>0,IFERROR(INDEX(Табель!$E:$E,MATCH('ВЕДОМОСТЬ Лященко'!$B5,Табель!$A:$A,0)+MATCH('ВЕДОМОСТЬ Лященко'!P$3,Табель!$D$6:$D$14,0)-1),"")*4.2/$E$1*$G5,IFERROR(INDEX(Табель!$H:$H,MATCH('ВЕДОМОСТЬ Лященко'!$B5,Табель!$A:$A,0)+MATCH('ВЕДОМОСТЬ Лященко'!P$3,Табель!$D$6:$D$14,0)-1),"")) -> 63 | Q5: 15
B6: 15 | C6: Бучина Татьяна Васильевна | E6: 67.5 | F6: 0.3 | H6: =ROUND(IF($G6>0,IFERROR(INDEX(Табель!$E:$E,MATCH('ВЕДОМОСТЬ Лященко'!$B6,Табель!$A:$A,0)+MATCH('ВЕДОМОСТЬ Лященко'!H$3,Табель!$D$6:$D$14,0)-1),"")*4.2/$E$1*$G6,IFERROR(INDEX(Табель!$H:$H,MATCH('ВЕДОМОСТЬ Лященко'!$B6,Табель!$A:$A,0)+MATCH('ВЕДОМОСТЬ Лященко'!H$3,Табель!$D$6:$D$14,0)-1),"")),2) -> 67 | I6: =ROUND(IF($G6>0,IFERROR(INDEX(Табель!$E:$E,MATCH('ВЕДОМОСТЬ Лященко'!$B6,Табель!$A:$A,0)+MATCH('ВЕДОМОСТЬ Лященко'!I$3,Табель!$D$6:$D$14,0)-1),"")*4.2/$E$1*$G6,IFERROR(INDEX(Табель!$H:$H,MATCH('ВЕДОМОСТЬ Лященко'!$B6,Табель!$A:$A,0)+MATCH('ВЕДОМОСТЬ Лященко'!I$3,Табель!$D$6:$D$14,0)-1),"")),2) -> 16 | J6: =ROUND(IF($G6>0,IFERROR(INDEX(Табель!$E:$E,MATCH('ВЕДОМОСТЬ Лященко'!$B6,Табель!$A:$A,0)+MATCH('ВЕДОМОСТЬ Лященко'!J$3,Табель!$D$6:$D$14,0)-1),"")*4.2/$E$1*$G6,IFERROR(INDEX(Табель!$H:$H,MATCH('ВЕДОМОСТЬ Лященко'!$B6,Табель!$A:$A,0)+MATCH('ВЕДОМОСТЬ Лященко'!J$3,Табель!$D$6:$D$14,0)-1),"")),2) -> 25 | K6: =ROUND(IF($G6>0,IFERROR(INDEX(Табель!$E:$E,MATCH('ВЕДОМОСТЬ Лященко'!$B6,Табель!$A:$A,0)+MATCH('ВЕДОМОСТЬ Лященко'!K$3,Табель!$D$6:$D$14,0)-1),"")*4.2/$E$1*$G6,IFERROR(INDEX(Табель!$H:$H,MATCH('ВЕДОМОСТЬ Лященко'!$B6,Табель!$A:$A,0)+MATCH('ВЕДОМОСТЬ Лященко'!K$3,Табель!$D$6:$D$14,0)-1),"")),2) -> 0 | L6: =ROUND(IF($G6>0,IFERROR(INDEX(Табель!$E:$E,MATCH('ВЕДОМОСТЬ Лященко'!$B6,Табель!$A:$A,0)+MATCH('ВЕДОМОСТЬ Лященко'!L$3,Табель!$D$6:$D$14,0)-1),"")*4.2/$E$1*$G6,IFERROR(INDEX(Табель!$H:$H,MATCH('ВЕДОМОСТЬ Лященко'!$B6,Табель!$A:$A,0)+MATCH('ВЕДОМОСТЬ Лященко'!L$3,Табель!$D$6:$D$14,0)-1),"")),2) -> 0 | M6: =ROUND(IF($G6>0,IFERROR(INDEX(Табель!$E:$E,MATCH('ВЕДОМОСТЬ Лященко'!$B6,Табель!$A:$A,0)+MATCH('ВЕДОМОСТЬ Лященко'!M$3,Табель!$D$6:$D$14,0)-1),"")*4.2/$E$1*$G6,IFERROR(INDEX(Табель!$H:$H,MATCH('ВЕДОМОСТЬ Лященко'!$B6,Табель!$A:$A,0)+MATCH('ВЕДОМОСТЬ Лященко'!M$3,Табель!$D$6:$D$14,0)-1),"")),2) -> 0 | N6: =ROUND(IF($G6=0,IFERROR(INDEX(Табель!$F:$F,MATCH('ВЕДОМОСТЬ Лященко'!$B6,Табель!$A:$A,0)+1),""),IFERROR(INDEX(Табель!$F:$F,MATCH('ВЕДОМОСТЬ Лященко'!$B6,Табель!$A:$A,0)+1),"")*4.2/$E$1*$G6),2) -> 0 | O6: =ROUND(IF($G6=0,IFERROR(INDEX(Табель!$G:$G,MATCH('ВЕДОМОСТЬ Лященко'!$B6,Табель!$A:$A,0)+1),""),IFERROR(INDEX(Табель!$G:$G,MATCH('ВЕДОМОСТЬ Лященко'!$B6,Табель!$A:$A,0)+1),"")*4.2/$E$1*$G6),2) -> 0 | P6: =IF($G6>0,IFERROR(INDEX(Табель!$E:$E,MATCH('ВЕДОМОСТЬ Лященко'!$B6,Табель!$A:$A,0)+MATCH('ВЕДОМОСТЬ Лященко'!P$3,Табель!$D$6:$D$14,0)-1),"")*4.2/$E$1*$G6,IFERROR(INDEX(Табель!$H:$H,MATCH('ВЕДОМОСТЬ Лященко'!$B6,Табель!$A:$A,0)+MATCH('ВЕДОМОСТЬ Лященко'!P$3,Табель!$D$6:$D$14,0)-1),"")) -> 20 | Q6: 5
B7: 16 | C7: Джумабаева Анара Акимкановна | E7: 67.5 | F7: 0.3 | H7: =ROUND(IF($G7>0,IFERROR(INDEX(Табель!$E:$E,MATCH('ВЕДОМОСТЬ Лященко'!$B7,Табель!$A:$A,0)+MATCH('ВЕДОМОСТЬ Лященко'!H$3,Табель!$D$6:$D$14,0)-1),"")*4.2/$E$1*$G7,IFERROR(INDEX(Табель!$H:$H,MATCH('ВЕДОМОСТЬ Лященко'!$B7,Табель!$A:$A,0)+MATCH('ВЕДОМОСТЬ Лященко'!H$3,Табель!$D$6:$D$14,0)-1),"")),2) -> 48 | I7: =ROUND(IF($G7>0,IFERROR(INDEX(Табель!$E:$E,MATCH('ВЕДОМОСТЬ Лященко'!$B7,Табель!$A:$A,0)+MATCH('ВЕДОМОСТЬ Лященко'!I$3,Табель!$D$6:$D$14,0)-1),"")*4.2/$E$1*$G7,IFERROR(INDEX(Табель!$H:$H,MATCH('ВЕДОМОСТЬ Лященко'!$B7,Табель!$A:$A,0)+MATCH('ВЕДОМОСТЬ Лященко'!I$3,Табель!$D$6:$D$14,0)-1),"")),2) -> 20 | J7: =ROUND(IF($G7>0,IFERROR(INDEX(Табель!$E:$E,MATCH('ВЕДОМОСТЬ Лященко'!$B7,Табель!$A:$A,0)+MATCH('ВЕДОМОСТЬ Лященко'!J$3,Табель!$D$6:$D$14,0)-1),"")*4.2/$E$1*$G7,IFERROR(INDEX(Табель!$H:$H,MATCH('ВЕДОМОСТЬ Лященко'!$B7,Табель!$A:$A,0)+MATCH('ВЕДОМОСТЬ Лященко'!J$3,Табель!$D$6:$D$14,0)-1),"")),2) -> 8 | K7: =ROUND(IF($G7>0,IFERROR(INDEX(Табель!$E:$E,MATCH('ВЕДОМОСТЬ Лященко'!$B7,Табель!$A:$A,0)+MATCH('ВЕДОМОСТЬ Лященко'!K$3,Табель!$D$6:$D$14,0)-1),"")*4.2/$E$1*$G7,IFERROR(INDEX(Табель!$H:$H,MATCH('ВЕДОМОСТЬ Лященко'!$B7,Табель!$A:$A,0)+MATCH('ВЕДОМОСТЬ Лященко'!K$3,Табель!$D$6:$D$14,0)-1),"")),2) -> 0 | L7: =ROUND(IF($G7>0,IFERROR(INDEX(Табель!$E:$E,MATCH('ВЕДОМОСТЬ Лященко'!$B7,Табель!$A:$A,0)+MATCH('ВЕДОМОСТЬ Лященко'!L$3,Табель!$D$6:$D$14,0)-1),"")*4.2/$E$1*$G7,IFERROR(INDEX(Табель!$H:$H,MATCH('ВЕДОМОСТЬ Лященко'!$B7,Табель!$A:$A,0)+MATCH('ВЕДОМОСТЬ Лященко'!L$3,Табель!$D$6:$D$14,0)-1),"")),2) -> 0 | M7: =ROUND(IF($G7>0,IFERROR(INDEX(Табель!$E:$E,MATCH('ВЕДОМОСТЬ Лященко'!$B7,Табель!$A:$A,0)+MATCH('ВЕДОМОСТЬ Лященко'!M$3,Табель!$D$6:$D$14,0)-1),"")*4.2/$E$1*$G7,IFERROR(INDEX(Табель!$H:$H,MATCH('ВЕДОМОСТЬ Лященко'!$B7,Табель!$A:$A,0)+MATCH('ВЕДОМОСТЬ Лященко'!M$3,Табель!$D$6:$D$14,0)-1),"")),2) -> 0 | N7: =ROUND(IF($G7=0,IFERROR(INDEX(Табель!$F:$F,MATCH('ВЕДОМОСТЬ Лященко'!$B7,Табель!$A:$A,0)+1),""),IFERROR(INDEX(Табель!$F:$F,MATCH('ВЕДОМОСТЬ Лященко'!$B7,Табель!$A:$A,0)+1),"")*4.2/$E$1*$G7),2) -> 12 | O7: =ROUND(IF($G7=0,IFERROR(INDEX(Табель!$G:$G,MATCH('ВЕДОМОСТЬ Лященко'!$B7,Табель!$A:$A,0)+1),""),IFERROR(INDEX(Табель!$G:$G,MATCH('ВЕДОМОСТЬ Лященко'!$B7,Табель!$A:$A,0)+1),"")*4.2/$E$1*$G7),2) -> 0 | P7: =IF($G7>0,IFERROR(INDEX(Табель!$E:$E,MATCH('ВЕДОМОСТЬ Лященко'!$B7,Табель!$A:$A,0)+MATCH('ВЕДОМОСТЬ Лященко'!P$3,Табель!$D$6:$D$14,0)-1),"")*4.2/$E$1*$G7,IFERROR(INDEX(Табель!$H:$H,MATCH('ВЕДОМОСТЬ Лященко'!$B7,Табель!$A:$A,0)+MATCH('ВЕДОМОСТЬ Лященко'!P$3,Табель!$D$6:$D$14,0)-1),"")) -> 0
B8: 17 | C8: Джумабаева Анара Акимкановна | E8: 81 | F8: 0.3 | H8: =ROUND(IF($G8>0,IFERROR(INDEX(Табель!$E:$E,MATCH('ВЕДОМОСТЬ Лященко'!$B8,Табель!$A:$A,0)+MATCH('ВЕДОМОСТЬ Лященко'!H$3,Табель!$D$6:$D$14,0)-1),"")*4.2/$E$1*$G8,IFERROR(INDEX(Табель!$H:$H,MATCH('ВЕДОМОСТЬ Лященко'!$B8,Табель!$A:$A,0)+MATCH('ВЕДОМОСТЬ Лященко'!H$3,Табель!$D$6:$D$14,0)-1),"")),2) -> 20 | I8: =ROUND(IF($G8>0,IFERROR(INDEX(Табель!$E:$E,MATCH('ВЕДОМОСТЬ Лященко'!$B8,Табель!$A:$A,0)+MATCH('ВЕДОМОСТЬ Лященко'!I$3,Табель!$D$6:$D$14,0)-1),"")*4.2/$E$1*$G8,IFERROR(INDEX(Табель!$H:$H,MATCH('ВЕДОМОСТЬ Лященко'!$B8,Табель!$A:$A,0)+MATCH('ВЕДОМОСТЬ Лященко'!I$3,Табель!$D$6:$D$14,0)-1),"")),2) -> 0 | J8: =ROUND(IF($G8>0,IFERROR(INDEX(Табель!$E:$E,MATCH('ВЕДОМОСТЬ Лященко'!$B8,Табель!$A:$A,0)+MATCH('ВЕДОМОСТЬ Лященко'!J$3,Табель!$D$6:$D$14,0)-1),"")*4.2/$E$1*$G8,IFERROR(INDEX(Табель!$H:$H,MATCH('ВЕДОМОСТЬ Лященко'!$B8,Табель!$A:$A,0)+MATCH('ВЕДОМОСТЬ Лященко'!J$3,Табель!$D$6:$D$14,0)-1),"")),2) -> 0 | K8: =ROUND(IF($G8>0,IFERROR(INDEX(Табель!$E:$E,MATCH('ВЕДОМОСТЬ Лященко'!$B8,Табель!$A:$A,0)+MATCH('ВЕДОМОСТЬ Лященко'!K$3,Табель!$D$6:$D$14,0)-1),"")*4.2/$E$1*$G8,IFERROR(INDEX(Табель!$H:$H,MATCH('ВЕДОМОСТЬ Лященко'!$B8,Табель!$A:$A,0)+MATCH('ВЕДОМОСТЬ Лященко'!K$3,Табель!$D$6:$D$14,0)-1),"")),2) -> 0 | L8: =ROUND(IF($G8>0,IFERROR(INDEX(Табель!$E:$E,MATCH('ВЕДОМОСТЬ Лященко'!$B8,Табель!$A:$A,0)+MATCH('ВЕДОМОСТЬ Лященко'!L$3,Табель!$D$6:$D$14,0)-1),"")*4.2/$E$1*$G8,IFERROR(INDEX(Табель!$H:$H,MATCH('ВЕДОМОСТЬ Лященко'!$B8,Табель!$A:$A,0)+MATCH('ВЕДОМОСТЬ Лященко'!L$3,Табель!$D$6:$D$14,0)-1),"")),2) -> 0 | M8: =ROUND(IF($G8>0,IFERROR(INDEX(Табель!$E:$E,MATCH('ВЕДОМОСТЬ Лященко'!$B8,Табель!$A:$A,0)+MATCH('ВЕДОМОСТЬ Лященко'!M$3,Табель!$D$6:$D$14,0)-1),"")*4.2/$E$1*$G8,IFERROR(INDEX(Табель!$H:$H,MATCH('ВЕДОМОСТЬ Лященко'!$B8,Табель!$A:$A,0)+MATCH('ВЕДОМОСТЬ Лященко'!M$3,Табель!$D$6:$D$14,0)-1),"")),2) -> 0 | N8: =ROUND(IF($G8=0,IFERROR(INDEX(Табель!$F:$F,MATCH('ВЕДОМОСТЬ Лященко'!$B8,Табель!$A:$A,0)+1),""),IFERROR(INDEX(Табель!$F:$F,MATCH('ВЕДОМОСТЬ Лященко'!$B8,Табель!$A:$A,0)+1),"")*4.2/$E$1*$G8),2) -> 20 | O8: =ROUND(IF($G8=0,IFERROR(INDEX(Табель!$G:$G,MATCH('ВЕДОМОСТЬ Лященко'!$B8,Табель!$A:$A,0)+1),""),IFERROR(INDEX(Табель!$G:$G,MATCH('ВЕДОМОСТЬ Лященко'!$B8,Табель!$A:$A,0)+1),"")*4.2/$E$1*$G8),2) -> 0 | P8: =IF($G8>0,IFERROR(INDEX(Табель!$E:$E,MATCH('ВЕДОМОСТЬ Лященко'!$B8,Табель!$A:$A,0)+MATCH('ВЕДОМОСТЬ Лященко'!P$3,Табель!$D$6:$D$14,0)-1),"")*4.2/$E$1*$G8,IFERROR(INDEX(Табель!$H:$H,MATCH('ВЕДОМОСТЬ Лященко'!$B8,Табель!$A:$A,0)+MATCH('ВЕДОМОСТЬ Лященко'!P$3,Табель!$D$6:$D$14,0)-1),"")) -> 0
B9: 18 | C9: Дмитриченко Анна Сергеевна | E9: 72 | F9: 0.2 | H9: =ROUND(IF($G9>0,IFERROR(INDEX(Табель!$E:$E,MATCH('ВЕДОМОСТЬ Лященко'!$B9,Табель!$A:$A,0)+MATCH('ВЕДОМОСТЬ Лященко'!H$3,Табель!$D$6:$D$14,0)-1),"")*4.2/$E$1*$G9,IFERROR(INDEX(Табель!$H:$H,MATCH('ВЕДОМОСТЬ Лященко'!$B9,Табель!$A:$A,0)+MATCH('ВЕДОМОСТЬ Лященко'!H$3,Табель!$D$6:$D$14,0)-1),"")),2) -> 80 | I9: =ROUND(IF($G9>0,IFERROR(INDEX(Табель!$E:$E,MATCH('ВЕДОМОСТЬ Лященко'!$B9,Табель!$A:$A,0)+MATCH('ВЕДОМОСТЬ Лященко'!I$3,Табель!$D$6:$D$14,0)-1),"")*4.2/$E$1*$G9,IFERROR(INDEX(Табель!$H:$H,MATCH('ВЕДОМОСТЬ Лященко'!$B9,Табель!$A:$A,0)+MATCH('ВЕДОМОСТЬ Лященко'!I$3,Табель!$D$6:$D$14,0)-1),"")),2) -> 26 | J9: =ROUND(IF($G9>0,IFERROR(INDEX(Табель!$E:$E,MATCH('ВЕДОМОСТЬ Лященко'!$B9,Табель!$A:$A,0)+MATCH('ВЕДОМОСТЬ Лященко'!J$3,Табель!$D$6:$D$14,0)-1),"")*4.2/$E$1*$G9,IFERROR(INDEX(Табель!$H:$H,MATCH('ВЕДОМОСТЬ Лященко'!$B9,Табель!$A:$A,0)+MATCH('ВЕДОМОСТЬ Лященко'!J$3,Табель!$D$6:$D$14,0)-1),"")),2) -> 26 | K9: =ROUND(IF($G9>0,IFERROR(INDEX(Табель!$E:$E,MATCH('ВЕДОМОСТЬ Лященко'!$B9,Табель!$A:$A,0)+MATCH('ВЕДОМОСТЬ Лященко'!K$3,Табель!$D$6:$D$14,0)-1),"")*4.2/$E$1*$G9,IFERROR(INDEX(Табель!$H:$H,MATCH('ВЕДОМОСТЬ Лященко'!$B9,Табель!$A:$A,0)+MATCH('ВЕДОМОСТЬ Лященко'!K$3,Табель!$D$6:$D$14,0)-1),"")),2) -> 0 | L9: =ROUND(IF($G9>0,IFERROR(INDEX(Табель!$E:$E,MATCH('ВЕДОМОСТЬ Лященко'!$B9,Табель!$A:$A,0)+MATCH('ВЕДОМОСТЬ Лященко'!L$3,Табель!$D$6:$D$14,0)-1),"")*4.2/$E$1*$G9,IFERROR(INDEX(Табель!$H:$H,MATCH('ВЕДОМОСТЬ Лященко'!$B9,Табель!$A:$A,0)+MATCH('ВЕДОМОСТЬ Лященко'!L$3,Табель!$D$6:$D$14,0)-1),"")),2) -> 0 | M9: =ROUND(IF($G9>0,IFERROR(INDEX(Табель!$E:$E,MATCH('ВЕДОМОСТЬ Лященко'!$B9,Табель!$A:$A,0)+MATCH('ВЕДОМОСТЬ Лященко'!M$3,Табель!$D$6:$D$14,0)-1),"")*4.2/$E$1*$G9,IFERROR(INDEX(Табель!$H:$H,MATCH('ВЕДОМОСТЬ Лященко'!$B9,Табель!$A:$A,0)+MATCH('ВЕДОМОСТЬ Лященко'!M$3,Табель!$D$6:$D$14,0)-1),"")),2) -> 0 | N9: =ROUND(IF($G9=0,IFERROR(INDEX(Табель!$F:$F,MATCH('ВЕДОМОСТЬ Лященко'!$B9,Табель!$A:$A,0)+1),""),IFERROR(INDEX(Табель!$F:$F,MATCH('ВЕДОМОСТЬ Лященко'!$B9,Табель!$A:$A,0)+1),"")*4.2/$E$1*$G9),2) -> 0 | O9: =ROUND(IF($G9=0,IFERROR(INDEX(Табель!$G:$G,MATCH('ВЕДОМОСТЬ Лященко'!$B9,Табель!$A:$A,0)+1),""),IFERROR(INDEX(Табель!$G:$G,MATCH('ВЕДОМОСТЬ Лященко'!$B9,Табель!$A:$A,0)+1),"")*4.2/$E$1*$G9),2) -> 0 | P9: =IF($G9>0,IFERROR(INDEX(Табель!$E:$E,MATCH('ВЕДОМОСТЬ Лященко'!$B9,Табель!$A:$A,0)+MATCH('ВЕДОМОСТЬ Лященко'!P$3,Табель!$D$6:$D$14,0)-1),"")*4.2/$E$1*$G9,IFERROR(INDEX(Табель!$H:$H,MATCH('ВЕДОМОСТЬ Лященко'!$B9,Табель!$A:$A,0)+MATCH('ВЕДОМОСТЬ Лященко'!P$3,Табель!$D$6:$D$14,0)-1),"")) -> 0
B10: 19 | C10: Дмитриченко Анна Сергеевна | E10: 72 | F10: 0.2 | H10: =ROUND(IF($G10>0,IFERROR(INDEX(Табель!$E:$E,MATCH('ВЕДОМОСТЬ Лященко'!$B10,Табель!$A:$A,0)+MATCH('ВЕДОМОСТЬ Лященко'!H$3,Табель!$D$6:$D$14,0)-1),"")*4.2/$E$1*$G10,IFERROR(INDEX(Табель!$H:$H,MATCH('ВЕДОМОСТЬ Лященко'!$B10,Табель!$A:$A,0)+MATCH('ВЕДОМОСТЬ Лященко'!H$3,Табель!$D$6:$D$14,0)-1),"")),2) -> 63 | I10: =ROUND(IF($G10>0,IFERROR(INDEX(Табель!$E:$E,MATCH('ВЕДОМОСТЬ Лященко'!$B10,Табель!$A:$A,0)+MATCH('ВЕДОМОСТЬ Лященко'!I$3,Табель!$D$6:$D$14,0)-1),"")*4.2/$E$1*$G10,IFERROR(INDEX(Табель!$H:$H,MATCH('ВЕДОМОСТЬ Лященко'!$B10,Табель!$A:$A,0)+MATCH('ВЕДОМОСТЬ Лященко'!I$3,Табель!$D$6:$D$14,0)-1),"")),2) -> 6 | J10: =ROUND(IF($G10>0,IFERROR(INDEX(Табель!$E:$E,MATCH('ВЕДОМОСТЬ Лященко'!$B10,Табель!$A:$A,0)+MATCH('ВЕДОМОСТЬ Лященко'!J$3,Табель!$D$6:$D$14,0)-1),"")*4.2/$E$1*$G10,IFERROR(INDEX(Табель!$H:$H,MATCH('ВЕДОМОСТЬ Лященко'!$B10,Табель!$A:$A,0)+MATCH('ВЕДОМОСТЬ Лященко'!J$3,Табель!$D$6:$D$14,0)-1),"")),2) -> 0 | K10: =ROUND(IF($G10>0,IFERROR(INDEX(Табель!$E:$E,MATCH('ВЕДОМОСТЬ Лященко'!$B10,Табель!$A:$A,0)+MATCH('ВЕДОМОСТЬ Лященко'!K$3,Табель!$D$6:$D$14,0)-1),"")*4.2/$E$1*$G10,IFERROR(INDEX(Табель!$H:$H,MATCH('ВЕДОМОСТЬ Лященко'!$B10,Табель!$A:$A,0)+MATCH('ВЕДОМОСТЬ Лященко'!K$3,Табель!$D$6:$D$14,0)-1),"")),2) -> 0 | L10: =ROUND(IF($G10>0,IFERROR(INDEX(Табель!$E:$E,MATCH('ВЕДОМОСТЬ Лященко'!$B10,Табель!$A:$A,0)+MATCH('ВЕДОМОСТЬ Лященко'!L$3,Табель!$D$6:$D$14,0)-1),"")*4.2/$E$1*$G10,IFERROR(INDEX(Табель!$H:$H,MATCH('ВЕДОМОСТЬ Лященко'!$B10,Табель!$A:$A,0)+MATCH('ВЕДОМОСТЬ Лященко'!L$3,Табель!$D$6:$D$14,0)-1),"")),2) -> 0 | M10: =ROUND(IF($G10>0,IFERROR(INDEX(Табель!$E:$E,MATCH('ВЕДОМОСТЬ Лященко'!$B10,Табель!$A:$A,0)+MATCH('ВЕДОМОСТЬ Лященко'!M$3,Табель!$D$6:$D$14,0)-1),"")*4.2/$E$1*$G10,IFERROR(INDEX(Табель!$H:$H,MATCH('ВЕДОМОСТЬ Лященко'!$B10,Табель!$A:$A,0)+MATCH('ВЕДОМОСТЬ Лященко'!M$3,Табель!$D$6:$D$14,0)-1),"")),2) -> 0 | N10: =ROUND(IF($G10=0,IFERROR(INDEX(Табель!$F:$F,MATCH('ВЕДОМОСТЬ Лященко'!$B10,Табель!$A:$A,0)+1),""),IFERROR(INDEX(Табель!$F:$F,MATCH('ВЕДОМОСТЬ Лященко'!$B10,Табель!$A:$A,0)+1),"")*4.2/$E$1*$G10),2) -> 0 | O10: =ROUND(IF($G10=0,IFERROR(INDEX(Табель!$G:$G,MATCH('ВЕДОМОСТЬ Лященко'!$B10,Табель!$A:$A,0)+1),""),IFERROR(INDEX(Табель!$G:$G,MATCH('ВЕДОМОСТЬ Лященко'!$B10,Табель!$A:$A,0)+1),"")*4.2/$E$1*$G10),2) -> 0 | P10: =IF($G10>0,IFERROR(INDEX(Табель!$E:$E,MATCH('ВЕДОМОСТЬ Лященко'!$B10,Табель!$A:$A,0)+MATCH('ВЕДОМОСТЬ Лященко'!P$3,Табель!$D$6:$D$14,0)-1),"")*4.2/$E$1*$G10,IFERROR(INDEX(Табель!$H:$H,MATCH('ВЕДОМОСТЬ Лященко'!$B10,Табель!$A:$A,0)+MATCH('ВЕДОМОСТЬ Лященко'!P$3,Табель!$D$6:$D$14,0)-1),"")) -> 0
B11: 20 | C11: Добрыднева Евгение Петровна | E11: 67.5 | F11: 0.1 | H11: =ROUND(IF($G11>0,IFERROR(INDEX(Табель!$E:$E,MATCH('ВЕДОМОСТЬ Лященко'!$B11,Табель!$A:$A,0)+MATCH('ВЕДОМОСТЬ Лященко'!H$3,Табель!$D$6:$D$14,0)-1),"")*4.2/$E$1*$G11,IFERROR(INDEX(Табель!$H:$H,MATCH('ВЕДОМОСТЬ Лященко'!$B11,Табель!$A:$A,0)+MATCH('ВЕДОМОСТЬ Лященко'!H$3,Табель!$D$6:$D$14,0)-1),"")),2) -> 84 | I11: =ROUND(IF($G11>0,IFERROR(INDEX(Табель!$E:$E,MATCH('ВЕДОМОСТЬ Лященко'!$B11,Табель!$A:$A,0)+MATCH('ВЕДОМОСТЬ Лященко'!I$3,Табель!$D$6:$D$14,0)-1),"")*4.2/$E$1*$G11,IFERROR(INDEX(Табель!$H:$H,MATCH('ВЕДОМОСТЬ Лященко'!$B11,Табель!$A:$A,0)+MATCH('ВЕДОМОСТЬ Лященко'!I$3,Табель!$D$6:$D$14,0)-1),"")),2) -> 17 | J11: =ROUND(IF($G11>0,IFERROR(INDEX(Табель!$E:$E,MATCH('ВЕДОМОСТЬ Лященко'!$B11,Табель!$A:$A,0)+MATCH('ВЕДОМОСТЬ Лященко'!J$3,Табель!$D$6:$D$14,0)-1),"")*4.2/$E$1*$G11,IFERROR(INDEX(Табель!$H:$H,MATCH('ВЕДОМОСТЬ Лященко'!$B11,Табель!$A:$A,0)+MATCH('ВЕДОМОСТЬ Лященко'!J$3,Табель!$D$6:$D$14,0)-1),"")),2) -> 34 | K11: =ROUND(IF($G11>0,IFERROR(INDEX(Табель!$E:$E,MATCH('ВЕДОМОСТЬ Лященко'!$B11,Табель!$A:$A,0)+MATCH('ВЕДОМОСТЬ Лященко'!K$3,Табель!$D$6:$D$14,0)-1),"")*4.2/$E$1*$G11,IFERROR(INDEX(Табель!$H:$H,MATCH('ВЕДОМОСТЬ Лященко'!$B11,Табель!$A:$A,0)+MATCH('ВЕДОМОСТЬ Лященко'!K$3,Табель!$D$6:$D$14,0)-1),"")),2) -> 0 | L11: =ROUND(IF($G11>0,IFERROR(INDEX(Табель!$E:$E,MATCH('ВЕДОМОСТЬ Лященко'!$B11,Табель!$A:$A,0)+MATCH('ВЕДОМОСТЬ Лященко'!L$3,Табель!$D$6:$D$14,0)-1),"")*4.2/$E$1*$G11,IFERROR(INDEX(Табель!$H:$H,MATCH('ВЕДОМОСТЬ Лященко'!$B11,Табель!$A:$A,0)+MATCH('ВЕДОМОСТЬ Лященко'!L$3,Табель!$D$6:$D$14,0)-1),"")),2) -> 0 | M11: =ROUND(IF($G11>0,IFERROR(INDEX(Табель!$E:$E,MATCH('ВЕДОМОСТЬ Лященко'!$B11,Табель!$A:$A,0)+MATCH('ВЕДОМОСТЬ Лященко'!M$3,Табель!$D$6:$D$14,0)-1),"")*4.2/$E$1*$G11,IFERROR(INDEX(Табель!$H:$H,MATCH('ВЕДОМОСТЬ Лященко'!$B11,Табель!$A:$A,0)+MATCH('ВЕДОМОСТЬ Лященко'!M$3,Табель!$D$6:$D$14,0)-1),"")),2) -> 0 | N11: =ROUND(IF($G11=0,IFERROR(INDEX(Табель!$F:$F,MATCH('ВЕДОМОСТЬ Лященко'!$B11,Табель!$A:$A,0)+1),""),IFERROR(INDEX(Табель!$F:$F,MATCH('ВЕДОМОСТЬ Лященко'!$B11,Табель!$A:$A,0)+1),"")*4.2/$E$1*$G11),2) -> 0 | O11: =ROUND(IF($G11=0,IFERROR(INDEX(Табель!$G:$G,MATCH('ВЕДОМОСТЬ Лященко'!$B11,Табель!$A:$A,0)+1),""),IFERROR(INDEX(Табель!$G:$G,MATCH('ВЕДОМОСТЬ Лященко'!$B11,Табель!$A:$A,0)+1),"")*4.2/$E$1*$G11),2) -> 0 | P11: =IF($G11>0,IFERROR(INDEX(Табель!$E:$E,MATCH('ВЕДОМОСТЬ Лященко'!$B11,Табель!$A:$A,0)+MATCH('ВЕДОМОСТЬ Лященко'!P$3,Табель!$D$6:$D$14,0)-1),"")*4.2/$E$1*$G11,IFERROR(INDEX(Табель!$H:$H,MATCH('ВЕДОМОСТЬ Лященко'!$B11,Табель!$A:$A,0)+MATCH('ВЕДОМОСТЬ Лященко'!P$3,Табель!$D$6:$D$14,0)-1),"")) -> 0
B12: 21 | C12: Добрыднева Евгение Петровна | E12: 81 | F12: 0.1 | H12: =ROUND(IF($G12>0,IFERROR(INDEX(Табель!$E:$E,MATCH('ВЕДОМОСТЬ Лященко'!$B12,Табель!$A:$A,0)+MATCH('ВЕДОМОСТЬ Лященко'!H$3,Табель!$D$6:$D$14,0)-1),"")*4.2/$E$1*$G12,IFERROR(INDEX(Табель!$H:$H,MATCH('ВЕДОМОСТЬ Лященко'!$B12,Табель!$A:$A,0)+MATCH('ВЕДОМОСТЬ Лященко'!H$3,Табель!$D$6:$D$14,0)-1),"")),2) -> 18 | I12: =ROUND(IF($G12>0,IFERROR(INDEX(Табель!$E:$E,MATCH('ВЕДОМОСТЬ Лященко'!$B12,Табель!$A:$A,0)+MATCH('ВЕДОМОСТЬ Лященко'!I$3,Табель!$D$6:$D$14,0)-1),"")*4.2/$E$1*$G12,IFERROR(INDEX(Табель!$H:$H,MATCH('ВЕДОМОСТЬ Лященко'!$B12,Табель!$A:$A,0)+MATCH('ВЕДОМОСТЬ Лященко'!I$3,Табель!$D$6:$D$14,0)-1),"")),2) -> 0 | J12: =ROUND(IF($G12>0,IFERROR(INDEX(Табель!$E:$E,MATCH('ВЕДОМОСТЬ Лященко'!$B12,Табель!$A:$A,0)+MATCH('ВЕДОМОСТЬ Лященко'!J$3,Табель!$D$6:$D$14,0)-1),"")*4.2/$E$1*$G12,IFERROR(INDEX(Табель!$H:$H,MATCH('ВЕДОМОСТЬ Лященко'!$B12,Табель!$A:$A,0)+MATCH('ВЕДОМОСТЬ Лященко'!J$3,Табель!$D$6:$D$14,0)-1),"")),2) -> 0 | K12: =ROUND(IF($G12>0,IFERROR(INDEX(Табель!$E:$E,MATCH('ВЕДОМОСТЬ Лященко'!$B12,Табель!$A:$A,0)+MATCH('ВЕДОМОСТЬ Лященко'!K$3,Табель!$D$6:$D$14,0)-1),"")*4.2/$E$1*$G12,IFERROR(INDEX(Табель!$H:$H,MATCH('ВЕДОМОСТЬ Лященко'!$B12,Табель!$A:$A,0)+MATCH('ВЕДОМОСТЬ Лященко'!K$3,Табель!$D$6:$D$14,0)-1),"")),2) -> 0 | L12: =ROUND(IF($G12>0,IFERROR(INDEX(Табель!$E:$E,MATCH('ВЕДОМОСТЬ Лященко'!$B12,Табель!$A:$A,0)+MATCH('ВЕДОМОСТЬ Лященко'!L$3,Табель!$D$6:$D$14,0)-1),"")*4.2/$E$1*$G12,IFERROR(INDEX(Табель!$H:$H,MATCH('ВЕДОМОСТЬ Лященко'!$B12,Табель!$A:$A,0)+MATCH('ВЕДОМОСТЬ Лященко'!L$3,Табель!$D$6:$D$14,0)-1),"")),2) -> 0 | M12: =ROUND(IF($G12>0,IFERROR(INDEX(Табель!$E:$E,MATCH('ВЕДОМОСТЬ Лященко'!$B12,Табель!$A:$A,0)+MATCH('ВЕДОМОСТЬ Лященко'!M$3,Табель!$D$6:$D$14,0)-1),"")*4.2/$E$1*$G12,IFERROR(INDEX(Табель!$H:$H,MATCH('ВЕДОМОСТЬ Лященко'!$B12,Табель!$A:$A,0)+MATCH('ВЕДОМОСТЬ Лященко'!M$3,Табель!$D$6:$D$14,0)-1),"")),2) -> 0 | N12: =ROUND(IF($G12=0,IFERROR(INDEX(Табель!$F:$F,MATCH('ВЕДОМОСТЬ Лященко'!$B12,Табель!$A:$A,0)+1),""),IFERROR(INDEX(Табель!$F:$F,MATCH('ВЕДОМОСТЬ Лященко'!$B12,Табель!$A:$A,0)+1),"")*4.2/$E$1*$G12),2) -> 0 | O12: =ROUND(IF($G12=0,IFERROR(INDEX(Табель!$G:$G,MATCH('ВЕДОМОСТЬ Лященко'!$B12,Табель!$A:$A,0)+1),""),IFERROR(INDEX(Табель!$G:$G,MATCH('ВЕДОМОСТЬ Лященко'!$B12,Табель!$A:$A,0)+1),"")*4.2/$E$1*$G12),2) -> 0 | P12: =IF($G12>0,IFERROR(INDEX(Табель!$E:$E,MATCH('ВЕДОМОСТЬ Лященко'!$B12,Табель!$A:$A,0)+MATCH('ВЕДОМОСТЬ Лященко'!P$3,Табель!$D$6:$D$14,0)-1),"")*4.2/$E$1*$G12,IFERROR(INDEX(Табель!$H:$H,MATCH('ВЕДОМОСТЬ Лященко'!$B12,Табель!$A:$A,0)+MATCH('ВЕДОМОСТЬ Лященко'!P$3,Табель!$D$6:$D$14,0)-1),"")) -> 0
B13: 22 | C13: Дружинина Галина Викторовна | E13: 67.5 | F13: 0.3 | H13: =ROUND(IF($G13>0,IFERROR(INDEX(Табель!$E:$E,MATCH('ВЕДОМОСТЬ Лященко'!$B13,Табель!$A:$A,0)+MATCH('ВЕДОМОСТЬ Лященко'!H$3,Табель!$D$6:$D$14,0)-1),"")*4.2/$E$1*$G13,IFERROR(INDEX(Табель!$H:$H,MATCH('ВЕДОМОСТЬ Лященко'!$B13,Табель!$A:$A,0)+MATCH('ВЕДОМОСТЬ Лященко'!H$3,Табель!$D$6:$D$14,0)-1),"")),2) -> 130 | I13: =ROUND(IF($G13>0,IFERROR(INDEX(Табель!$E:$E,MATCH('ВЕДОМОСТЬ Лященко'!$B13,Табель!$A:$A,0)+MATCH('ВЕДОМОСТЬ Лященко'!I$3,Табель!$D$6:$D$14,0)-1),"")*4.2/$E$1*$G13,IFERROR(INDEX(Табель!$H:$H,MATCH('ВЕДОМОСТЬ Лященко'!$B13,Табель!$A:$A,0)+MATCH('ВЕДОМОСТЬ Лященко'!I$3,Табель!$D$6:$D$14,0)-1),"")),2) -> 21 | J13: =ROUND(IF($G13>0,IFERROR(INDEX(Табель!$E:$E,MATCH('ВЕДОМОСТЬ Лященко'!$B13,Табель!$A:$A,0)+MATCH('ВЕДОМОСТЬ Лященко'!J$3,Табель!$D$6:$D$14,0)-1),"")*4.2/$E$1*$G13,IFERROR(INDEX(Табель!$H:$H,MATCH('ВЕДОМОСТЬ Лященко'!$B13,Табель!$A:$A,0)+MATCH('ВЕДОМОСТЬ Лященко'!J$3,Табель!$D$6:$D$14,0)-1),"")),2) -> 25 | K13: =ROUND(IF($G13>0,IFERROR(INDEX(Табель!$E:$E,MATCH('ВЕДОМОСТЬ Лященко'!$B13,Табель!$A:$A,0)+MATCH('ВЕДОМОСТЬ Лященко'!K$3,Табель!$D$6:$D$14,0)-1),"")*4.2/$E$1*$G13,IFERROR(INDEX(Табель!$H:$H,MATCH('ВЕДОМОСТЬ Лященко'!$B13,Табель!$A:$A,0)+MATCH('ВЕДОМОСТЬ Лященко'!K$3,Табель!$D$6:$D$14,0)-1),"")),2) -> 0 | L13: =ROUND(IF($G13>0,IFERROR(INDEX(Табель!$E:$E,MATCH('ВЕДОМОСТЬ Лященко'!$B13,Табель!$A:$A,0)+MATCH('ВЕДОМОСТЬ Лященко'!L$3,Табель!$D$6:$D$14,0)-1),"")*4.2/$E$1*$G13,IFERROR(INDEX(Табель!$H:$H,MATCH('ВЕДОМОСТЬ Лященко'!$B13,Табель!$A:$A,0)+MATCH('ВЕДОМОСТЬ Лященко'!L$3,Табель!$D$6:$D$14,0)-1),"")),2) -> 0 | M13: =ROUND(IF($G13>0,IFERROR(INDEX(Табель!$E:$E,MATCH('ВЕДОМОСТЬ Лященко'!$B13,Табель!$A:$A,0)+MATCH('ВЕДОМОСТЬ Лященко'!M$3,Табель!$D$6:$D$14,0)-1),"")*4.2/$E$1*$G13,IFERROR(INDEX(Табель!$H:$H,MATCH('ВЕДОМОСТЬ Лященко'!$B13,Табель!$A:$A,0)+MATCH('ВЕДОМОСТЬ Лященко'!M$3,Табель!$D$6:$D$14,0)-1),"")),2) -> 0 | N13: =ROUND(IF($G13=0,IFERROR(INDEX(Табель!$F:$F,MATCH('ВЕДОМОСТЬ Лященко'!$B13,Табель!$A:$A,0)+1),""),IFERROR(INDEX(Табель!$F:$F,MATCH('ВЕДОМОСТЬ Лященко'!$B13,Табель!$A:$A,0)+1),"")*4.2/$E$1*$G13),2) -> 0 | O13: =ROUND(IF($G13=0,IFERROR(INDEX(Табель!$G:$G,MATCH('ВЕДОМОСТЬ Лященко'!$B13,Табель!$A:$A,0)+1),""),IFERROR(INDEX(Табель!$G:$G,MATCH('ВЕДОМОСТЬ Лященко'!$B13,Табель!$A:$A,0)+1),"")*4.2/$E$1*$G13),2) -> 0 | P13: =IF($G13>0,IFERROR(INDEX(Табель!$E:$E,MATCH('ВЕДОМОСТЬ Лященко'!$B13,Табель!$A:$A,0)+MATCH('ВЕДОМОСТЬ Лященко'!P$3,Табель!$D$6:$D$14,0)-1),"")*4.2/$E$1*$G13,IFERROR(INDEX(Табель!$H:$H,MATCH('ВЕДОМОСТЬ Лященко'!$B13,Табель!$A:$A,0)+MATCH('ВЕДОМОСТЬ Лященко'!P$3,Табель!$D$6:$D$14,0)-1),"")) -> 0
B14: 23 | C14: Дубинина Евгения Ивановна | E14: 67.5 | F14: 0 | H14: =ROUND(IF($G14>0,IFERROR(INDEX(Табель!$E:$E,MATCH('ВЕДОМОСТЬ Лященко'!$B14,Табель!$A:$A,0)+MATCH('ВЕДОМОСТЬ Лященко'!H$3,Табель!$D$6:$D$14,0)-1),"")*4.2/$E$1*$G14,IFERROR(INDEX(Табель!$H:$H,MATCH('ВЕДОМОСТЬ Лященко'!$B14,Табель!$A:$A,0)+MATCH('ВЕДОМОСТЬ Лященко'!H$3,Табель!$D$6:$D$14,0)-1),"")),2) -> 84 | I14: =ROUND(IF($G14>0,IFERROR(INDEX(Табель!$E:$E,MATCH('ВЕДОМОСТЬ Лященко'!$B14,Табель!$A:$A,0)+MATCH('ВЕДОМОСТЬ Лященко'!I$3,Табель!$D$6:$D$14,0)-1),"")*4.2/$E$1*$G14,IFERROR(INDEX(Табель!$H:$H,MATCH('ВЕДОМОСТЬ Лященко'!$B14,Табель!$A:$A,0)+MATCH('ВЕДОМОСТЬ Лященко'!I$3,Табель!$D$6:$D$14,0)-1),"")),2) -> 13 | J14: =ROUND(IF($G14>0,IFERROR(INDEX(Табель!$E:$E,MATCH('ВЕДОМОСТЬ Лященко'!$B14,Табель!$A:$A,0)+MATCH('ВЕДОМОСТЬ Лященко'!J$3,Табель!$D$6:$D$14,0)-1),"")*4.2/$E$1*$G14,IFERROR(INDEX(Табель!$H:$H,MATCH('ВЕДОМОСТЬ Лященко'!$B14,Табель!$A:$A,0)+MATCH('ВЕДОМОСТЬ Лященко'!J$3,Табель!$D$6:$D$14,0)-1),"")),2) -> 25 | K14: =ROUND(IF($G14>0,IFERROR(INDEX(Табель!$E:$E,MATCH('ВЕДОМОСТЬ Лященко'!$B14,Табель!$A:$A,0)+MATCH('ВЕДОМОСТЬ Лященко'!K$3,Табель!$D$6:$D$14,0)-1),"")*4.2/$E$1*$G14,IFERROR(INDEX(Табель!$H:$H,MATCH('ВЕДОМОСТЬ Лященко'!$B14,Табель!$A:$A,0)+MATCH('ВЕДОМОСТЬ Лященко'!K$3,Табель!$D$6:$D$14,0)-1),"")),2) -> 0 | L14: =ROUND(IF($G14>0,IFERROR(INDEX(Табель!$E:$E,MATCH('ВЕДОМОСТЬ Лященко'!$B14,Табель!$A:$A,0)+MATCH('ВЕДОМОСТЬ Лященко'!L$3,Табель!$D$6:$D$14,0)-1),"")*4.2/$E$1*$G14,IFERROR(INDEX(Табель!$H:$H,MATCH('ВЕДОМОСТЬ Лященко'!$B14,Табель!$A:$A,0)+MATCH('ВЕДОМОСТЬ Лященко'!L$3,Табель!$D$6:$D$14,0)-1),"")),2) -> 0 | M14: =ROUND(IF($G14>0,IFERROR(INDEX(Табель!$E:$E,MATCH('ВЕДОМОСТЬ Лященко'!$B14,Табель!$A:$A,0)+MATCH('ВЕДОМОСТЬ Лященко'!M$3,Табель!$D$6:$D$14,0)-1),"")*4.2/$E$1*$G14,IFERROR(INDEX(Табель!$H:$H,MATCH('ВЕДОМОСТЬ Лященко'!$B14,Табель!$A:$A,0)+MATCH('ВЕДОМОСТЬ Лященко'!M$3,Табель!$D$6:$D$14,0)-1),"")),2) -> 0 | N14: =ROUND(IF($G14=0,IFERROR(INDEX(Табель!$F:$F,MATCH('ВЕДОМОСТЬ Лященко'!$B14,Табель!$A:$A,0)+1),""),IFERROR(INDEX(Табель!$F:$F,MATCH('ВЕДОМОСТЬ Лященко'!$B14,Табель!$A:$A,0)+1),"")*4.2/$E$1*$G14),2) -> 0 | O14: =ROUND(IF($G14=0,IFERROR(INDEX(Табель!$G:$G,MATCH('ВЕДОМОСТЬ Лященко'!$B14,Табель!$A:$A,0)+1),""),IFERROR(INDEX(Табель!$G:$G,MATCH('ВЕДОМОСТЬ Лященко'!$B14,Табель!$A:$A,0)+1),"")*4.2/$E$1*$G14),2) -> 0 | P14: =IF($G14>0,IFERROR(INDEX(Табель!$E:$E,MATCH('ВЕДОМОСТЬ Лященко'!$B14,Табель!$A:$A,0)+MATCH('ВЕДОМОСТЬ Лященко'!P$3,Табель!$D$6:$D$14,0)-1),"")*4.2/$E$1*$G14,IFERROR(INDEX(Табель!$H:$H,MATCH('ВЕДОМОСТЬ Лященко'!$B14,Табель!$A:$A,0)+MATCH('ВЕДОМОСТЬ Лященко'!P$3,Табель!$D$6:$D$14,0)-1),"")) -> 0
B15: 24 | C15: Дуйшебаева Суйумкан Омушевна | E15: 67.5 | F15: 0.3 | H15: =ROUND(IF($G15>0,IFERROR(INDEX(Табель!$E:$E,MATCH('ВЕДОМОСТЬ Лященко'!$B15,Табель!$A:$A,0)+MATCH('ВЕДОМОСТЬ Лященко'!H$3,Табель!$D$6:$D$14,0)-1),"")*4.2/$E$1*$G15,IFERROR(INDEX(Табель!$H:$H,MATCH('ВЕДОМОСТЬ Лященко'!$B15,Табель!$A:$A,0)+MATCH('ВЕДОМОСТЬ Лященко'!H$3,Табель!$D$6:$D$14,0)-1),"")),2) -> 90 | I15: =ROUND(IF($G15>0,IFERROR(INDEX(Табель!$E:$E,MATCH('ВЕДОМОСТЬ Лященко'!$B15,Табель!$A:$A,0)+MATCH('ВЕДОМОСТЬ Лященко'!I$3,Табель!$D$6:$D$14,0)-1),"")*4.2/$E$1*$G15,IFERROR(INDEX(Табель!$H:$H,MATCH('ВЕДОМОСТЬ Лященко'!$B15,Табель!$A:$A,0)+MATCH('ВЕДОМОСТЬ Лященко'!I$3,Табель!$D$6:$D$14,0)-1),"")),2) -> 17 | J15: =ROUND(IF($G15>0,IFERROR(INDEX(Табель!$E:$E,MATCH('ВЕДОМОСТЬ Лященко'!$B15,Табель!$A:$A,0)+MATCH('ВЕДОМОСТЬ Лященко'!J$3,Табель!$D$6:$D$14,0)-1),"")*4.2/$E$1*$G15,IFERROR(INDEX(Табель!$H:$H,MATCH('ВЕДОМОСТЬ Лященко'!$B15,Табель!$A:$A,0)+MATCH('ВЕДОМОСТЬ Лященко'!J$3,Табель!$D$6:$D$14,0)-1),"")),2) -> 26 | K15: =ROUND(IF($G15>0,IFERROR(INDEX(Табель!$E:$E,MATCH('ВЕДОМОСТЬ Лященко'!$B15,Табель!$A:$A,0)+MATCH('ВЕДОМОСТЬ Лященко'!K$3,Табель!$D$6:$D$14,0)-1),"")*4.2/$E$1*$G15,IFERROR(INDEX(Табель!$H:$H,MATCH('ВЕДОМОСТЬ Лященко'!$B15,Табель!$A:$A,0)+MATCH('ВЕДОМОСТЬ Лященко'!K$3,Табель!$D$6:$D$14,0)-1),"")),2) -> 0 | L15: =ROUND(IF($G15>0,IFERROR(INDEX(Табель!$E:$E,MATCH('ВЕДОМОСТЬ Лященко'!$B15,Табель!$A:$A,0)+MATCH('ВЕДОМОСТЬ Лященко'!L$3,Табель!$D$6:$D$14,0)-1),"")*4.2/$E$1*$G15,IFERROR(INDEX(Табель!$H:$H,MATCH('ВЕДОМОСТЬ Лященко'!$B15,Табель!$A:$A,0)+MATCH('ВЕДОМОСТЬ Лященко'!L$3,Табель!$D$6:$D$14,0)-1),"")),2) -> 0 | M15: =ROUND(IF($G15>0,IFERROR(INDEX(Табель!$E:$E,MATCH('ВЕДОМОСТЬ Лященко'!$B15,Табель!$A:$A,0)+MATCH('ВЕДОМОСТЬ Лященко'!M$3,Табель!$D$6:$D$14,0)-1),"")*4.2/$E$1*$G15,IFERROR(INDEX(Табель!$H:$H,MATCH('ВЕДОМОСТЬ Лященко'!$B15,Табель!$A:$A,0)+MATCH('ВЕДОМОСТЬ Лященко'!M$3,Табель!$D$6:$D$14,0)-1),"")),2) -> 0 | N15: =ROUND(IF($G15=0,IFERROR(INDEX(Табель!$F:$F,MATCH('ВЕДОМОСТЬ Лященко'!$B15,Табель!$A:$A,0)+1),""),IFERROR(INDEX(Табель!$F:$F,MATCH('ВЕДОМОСТЬ Лященко'!$B15,Табель!$A:$A,0)+1),"")*4.2/$E$1*$G15),2) -> 36 | O15: =ROUND(IF($G15=0,IFERROR(INDEX(Табель!$G:$G,MATCH('ВЕДОМОСТЬ Лященко'!$B15,Табель!$A:$A,0)+1),""),IFERROR(INDEX(Табель!$G:$G,MATCH('ВЕДОМОСТЬ Лященко'!$B15,Табель!$A:$A,0)+1),"")*4.2/$E$1*$G15),2) -> 0 | P15: =IF($G15>0,IFERROR(INDEX(Табель!$E:$E,MATCH('ВЕДОМОСТЬ Лященко'!$B15,Табель!$A:$A,0)+MATCH('ВЕДОМОСТЬ Лященко'!P$3,Табель!$D$6:$D$14,0)-1),"")*4.2/$E$1*$G15,IFERROR(INDEX(Табель!$H:$H,MATCH('ВЕДОМОСТЬ Лященко'!$B15,Табель!$A:$A,0)+MATCH('ВЕДОМОСТЬ Лященко'!P$3,Табель!$D$6:$D$14,0)-1),"")) -> 0

Sheet Табель
B3: 2018-ж.
B4: ФИО | D4: Иш убактысы | E4: Саат/ Ств | F4: Тил | G4: уйдо окуу | H4: Бард-гы | I4: иш | J4: жш | K4: дш | L4: шш | M4: шр | N4: бш | O4: жм | P4: иш | Q4: жш | R4: дш | S4: шш | T4: шр | U4: бш | V4: жм | W4: иш | X4: жш | Y4: дш | Z4: шш | AA4: шр | AB4: бш | AC4: жм | AD4: иш | AE4: жш | AF4: дш | AG4: шш | AH4: шр | AI4: бш | AJ4: жм | AK4: иш | AL4: жш | AM4: дш
I5: 1 | J5: 2 | K5: 3 | L5: 4 | M5: 5 | N5: 6 | O5: 7 | P5: 8 | Q5: 9 | R5: 10 | S5: 11 | T5: 12 | U5: 13 | V5: 14 | W5: 15 | X5: 16 | Y5: 17 | Z5: 18 | AA5: 19 | AB5: 20 | AC5: 21 | AD5: 22 | AE5: 23 | AF5: 24 | AG5: 25 | AH5: 26 | AI5: 27 | AJ5: 28 | AK5: 29 | AL5: 30 | AM5: 31
A6: 1 | B6: Перегородова Ольга Ивановна | D6: директор | E6: 1 | H6: =COUNTIF(I6:AM6,"7") -> 21 | J6: жш | K6: 7 | L6: 7 | M6: 7 | N6: 7 | O6: 7 | Q6: жш | R6: 7 | S6: 7 | T6: 7 | U6: 7 | V6: 7 | X6: жш | Y6: 7 | Z6: 7 | AA6: 7 | AB6: 7 | AC6: 7 | AE6: жш | AF6: 7 | AG6: 7 | AH6: 7 | AI6: 7 | AJ6: 7 | AL6: жш | AM6: 7
D7: ОС | H7: =SUM(I7:AM7) -> 0 | J7: жш | Q7: жш | X7: жш | AE7: жш | AL7: жш
D8: ДС | H8: 0 | J8: жш | Q8: жш | X8: жш | AE8: жш | AL8: жш
C9: Всш | D9: ЧО,ТС | H9: 0 | J9: жш | Q9: жш | X9: жш | AE9: жш | AL9: жш
D10: ЗОС | H10: 0 | J10: жш | Q10: жш | X10: жш | AE10: жш | AL10: жш
D11: ЗДС | H11: 0 | J11: жш | Q11: жш | X11: жш | AE11: жш | AL11: жш
D12: ЗЧО,ТС | H12: 0 | J12: жш | Q12: жш | X12: жш | AE12: жш | AL12: жш
D13: ИЙИРИМ | H13: 0 | J13: жш | Q13: жш | X13: жш | AE13: жш | AL13: жш
H14: 0 | J14: жш | Q14: жш | X14: жш | AE14: жш | AL14: жш
B15: 67.5 | C15: 0.3 | D15: ЖЫЙ-Ы | E15: =SUM(E7:E14) -> 0 | H15: =SUM(H7:H14) -> 0 | I15: =SUM(I7:I14) -> 0 | J15: =SUM(J7:J14) -> 0 | K15: 0 | L15: 0 | M15: 0 | N15: 0 | O15: 0 | P15: 0 | Q15: 0 | R15: 0 | S15: 0 | T15: 0 | U15: 0 | V15: 0 | W15: 0 | X15: 0 | Y15: 0 | Z15: 0 | AA15: 0 | AB15: 0 | AC15: 0 | AD15: 0 | AE15: 0 | AF15: 0 | AG15: 0 | AH15: 0 | AI15: 0 | AJ15: 0 | AK15: 0 | AL15: =SUM(AL7:AL14) -> 0 | AM15: =SUM(AM7:AM14) -> 0
D16: ИШ КУН-Р | H16: =SUM(I15:AM15) -> 0
A17: 14 | B17: Бочарникова Оксана Анатольевна | H17: =COUNTIF(I17:AM17,"7") -> 0 | J17: жш | Q17: жш | X17: жш | AE17: жш | AL17: жш
D18: ОС | E18: 11 | H18: =SUM(I18:AM18) -> 45 | J18: жш | K18: 1 | L18: 4 | M18: 4 | N18: 2 | Q18: жш | R18: 1 | S18: 4 | T18: 4 | U18: 2 | X18: жш | Y18: 1 | Z18: 4 | AA18: 4 | AB18: 2 | AE18: жш | AF18: 1 | AG18: 4 | AH18: 4 | AI18: 2 | AL18: жш | AM18: 1
D19: ДС | E19: 2 | H19: 8 | J19: жш | L19: 1 | M19: 1 | Q19: жш | S19: 1 | T19: 1 | X19: жш | Z19: 1 | AA19: 1 | AE19: жш | AG19: 1 | AH19: 1 | AL19: жш
C20: сред | D20: ЧО,ТС | E20: 6 | H20: 26 | J20: жш | K20: 2 | L20: 1 | M20: 1 | N20: 1 | O20: 1 | Q20: жш | R20: 2 | S20: 1 | T20: 1 | U20: 1 | V20: 1 | X20: жш | Y20: 2 | Z20: 1 | AA20: 1 | AB20: 1 | AC20: 1 | AE20: жш | AF20: 2 | AG20: 1 | AH20: 1 | AI20: 1 | AJ20: 1 | AL20: жш | AM20: 2
D21: ЗОС | H21: 0 | J21: жш | Q21: жш | X21: жш | AE21: жш | AL21: жш
D22: ЗДС | H22: 0 | J22: жш | Q22: жш | X22: жш | AE22: жш | AL22: жш
D23: ЗЧО,ТС | H23: 0 | J23: жш | Q23: жш | X23: жш | AE23: жш | AL23: жш
B24: труд/ОБЖ/естеств | D24: ИЙИРИМ | E24: 15 | H24: 63 | J24: жш | K24: 3 | L24: 3 | M24: 3 | N24: 3 | O24: 3 | Q24: жш | R24: 3 | S24: 3 | T24: 3 | U24: 3 | V24: 3 | X24: жш | Y24: 3 | Z24: 3 | AA24: 3 | AB24: 3 | AC24: 3 | AE24: жш | AF24: 3 | AG24: 3 | AH24: 3 | AI24: 3 | AJ24: 3 | AL24: жш | AM24: 3
H25: 0 | J25: жш | Q25: жш | X25: жш | AE25: жш | AL25: жш
B26: 60 | C26: 0.1 | D26: ЖЫЙ-Ы | E26: =SUM(E18:E25) -> 34 | H26: =SUM(H18:H25) -> 142 | I26: =SUM(I18:I25) -> 0 | J26: =SUM(J18:J25) -> 0 | K26: 6 | L26: 9 | M26: 9 | N26: 6 | O26: 4 | P26: 0 | Q26: 0 | R26: 6 | S26: 9 | T26: 9 | U26: 6 | V26: 4 | W26: 0 | X26: 0 | Y26: 6 | Z26: 9 | AA26: 9 | AB26: 6 | AC26: 4 | AD26: 0 | AE26: 0 | AF26: 6 | AG26: 9 | AH26: 9 | AI26: 6 | AJ26: 4 | AK26: 0 | AL26: =SUM(AL18:AL25) -> 0 | AM26: =SUM(AM18:AM25) -> 6
D27: ИШ КУН-Р | H27: =SUM(I26:AM26) -> 142
A28: 15 | B28: Бучина Татьяна Васильевна | H28: =COUNTIF(I28:AM28,"7") -> 0 | J28: жш | Q28: жш | X28: жш | AE28: жш | AL28: жш
D29: ОС | E29: 16 | H29: =SUM(I29:AM29) -> 67 | J29: жш | K29: 3 | L29: 3 | M29: 3 | N29: 3 | O29: 4 | Q29: жш | R29: 3 | S29: 3 | T29: 3 | U29: 3 | V29: 4 | X29: жш | Y29: 3 | Z29: 3 | AA29: 3 | AB29: 3 | AC29: 4 | AE29: жш | AF29: 3 | AG29: 3 | AH29: 3 | AI29: 3 | AJ29: 4 | AL29: жш | AM29: 3
D30: ДС | E30: 4 | H30: 16 | J30: жш | L30: 1 | M30: 1 | N30: 1 | O30: 1 | Q30: жш | S30: 1 | T30: 1 | U30: 1 | V30: 1 | X30: жш | Z30: 1 | AA30: 1 | AB30: 1 | AC30: 1 | AE30: жш | AG30: 1 | AH30: 1 | AI30: 1 | AJ30: 1 | AL30: жш
B31: 8 Б | C31: Всш | D31: ЧО,ТС | E31: 6 | H31: 25 | J31: жш | K31: 1 | L31: 1 | M31: 1 | N31: 1 | O31: 2 | Q31: жш | R31: 1 | S31: 1 | T31: 1 | U31: 1 | V31: 2 | X31: жш | Y31: 1 | Z31: 1 | AA31: 1 | AB31: 1 | AC31: 2 | AE31: жш | AF31: 1 | AG31: 1 | AH31: 1 | AI31: 1 | AJ31: 2 | AL31: жш | AM31: 1
D32: ЗОС | H32: 0 | J32: жш | Q32: жш | X32: жш | AE32: жш | AL32: жш
D33: ЗДС | H33: 0 | J33: жш | Q33: жш | X33: жш | AE33: жш | AL33: жш
D34: ЗЧО,ТС | H34: 0 | J34: жш | Q34: жш | X34: жш | AE34: жш | AL34: жш
B35: математика | D35: ИЙИРИМ | E35: 5 | H35: 20 | J35: жш | L35: 2 | M35: 2 | N35: 1 | Q35: жш | S35: 2 | T35: 2 | U35: 1 | X35: жш | Z35: 2 | AA35: 2 | AB35: 1 | AE35: жш | AG35: 2 | AH35: 2 | AI35: 1 | AL35: жш
H36: 0 | J36: жш | Q36: жш | X36: жш | AE36: жш | AL36: жш
B37: 67.5 | C37: 0.3 | D37: ЖЫЙ-Ы | E37: =SUM(E29:E36) -> 31 | H37: =SUM(H29:H36) -> 128 | I37: =SUM(I29:I36) -> 0 | J37: =SUM(J29:J36) -> 0 | K37: 4 | L37: 7 | M37: 7 | N37: 6 | O37: 7 | P37: 0 | Q37: 0 | R37: 4 | S37: 7 | T37: 7 | U37: 6 | V37: 7 | W37: 0 | X37: 0 | Y37: 4 | Z37: 7 | AA37: 7 | AB37: 6 | AC37: 7 | AD37: 0 | AE37: 0 | AF37: 4 | AG37: 7 | AH37: 7 | AI37: 6 | AJ37: 7 | AK37: 0 | AL37: =SUM(AL29:AL36) -> 0 | AM37: =SUM(AM29:AM36) -> 4
D38: ИШ КУН-Р | H38: =SUM(I37:AM37) -> 128
A39: 16 | B39: Джумабаева Анара Акимкановна | H39: =COUNTIF(I39:AM39,"7") -> 0 | J39: жш | Q39: жш | X39: жш | AE39: жш | AL39: жш
D40: ОС | E40: 12 | F40: 12 | H40: =SUM(I40:AM40) -> 48 | J40: жш | L40: 2 | M40: 2 | N40: 5 | O40: 3 | Q40: жш | S40: 2 | T40: 2 | U40: 5 | V40: 3 | X40: жш | Z40: 2 | AA40: 2 | AB40: 5 | AC40: 3 | AE40: жш | AG40: 2 | AH40: 2 | AI40: 5 | AJ40: 3 | AL40: жш
D41: ДС | E41: 5 | H41: 20 | J41: жш | L41: 1 | M41: 1 | N41: 2 | O41: 1 | Q41: жш | S41: 1 | T41: 1 | U41: 2 | V41: 1 | X41: жш | Z41: 1 | AA41: 1 | AB41: 2 | AC41: 1 | AE41: жш | AG41: 1 | AH41: 1 | AI41: 2 | AJ41: 1 | AL41: жш
C42: Всш | D42: ЧО,ТС | E42: 2 | H42: 8 | J42: жш | L42: 1 | N42: 1 | Q42: жш | S42: 1 | U42: 1 | X42: жш | Z42: 1 | AB42: 1 | AE42: жш | AG42: 1 | AI42: 1 | AL42: жш
D43: ЗОС | H43: 0 | J43: жш | Q43: жш | X43: жш | AE43: жш | AL43: жш
D44: ЗДС | H44: 0 | J44: жш | Q44: жш | X44: жш | AE44: жш | AL44: жш
D45: ЗЧО,ТС | H45: 0 | J45: жш | Q45: жш | X45: жш | AE45: жш | AL45: жш
B46: орус тили | D46: ИЙИРИМ | H46: 0 | J46: жш | Q46: жш | X46: жш | AE46: жш | AL46: жш
H47: 0 | J47: жш | Q47: жш | X47: жш | AE47: жш | AL47: жш
B48: 67.5 | C48: 0.3 | D48: ЖЫЙ-Ы | E48: =SUM(E40:E47) -> 19 | H48: =SUM(H40:H47) -> 76 | I48: =SUM(I40:I47) -> 0 | J48: =SUM(J40:J47) -> 0 | K48: 0 | L48: 4 | M48: 3 | N48: 8 | O48: 4 | P48: 0 | Q48: 0 | R48: 0 | S48: 4 | T48: 3 | U48: 8 | V48: 4 | W48: 0 | X48: 0 | Y48: 0 | Z48: 4 | AA48: 3 | AB48: 8 | AC48: 4 | AD48: 0 | AE48: 0 | AF48: 0 | AG48: 4 | AH48: 3 | AI48: 8 | AJ48: 4 | AK48: 0 | AL48: =SUM(AL40:AL47) -> 0 | AM48: =SUM(AM40:AM47) -> 0
D49: ИШ КУН-Р | H49: =SUM(I48:AM48) -> 76
A50: 17 | B50: Джумабаева Анара Акимкановна | H50: =COUNTIF(I50:AM50,"7") -> 0 | J50: жш | Q50: жш | X50: жш | AE50: жш | AL50: жш
D51: ОС | E51: 5 | F51: 20 | H51: =SUM(I51:AM51) -> 20 | J51: жш | L51: 2 | M51: 2 | N51: 1 | Q51: жш | S51: 2 | T51: 2 | U51: 1 | X51: жш | Z51: 2 | AA51: 2 | AB51: 1 | AE51: жш | AG51: 2 | AH51: 2 | AI51: 1 | AL51: жш
D52: ДС | H52: 0 | J52: жш | Q52: жш | X52: жш | AE52: жш | AL52: жш
C53: Всш | D53: ЧО,ТС | H53: 0 | J53: жш | Q53: жш | X53: жш | AE53: жш | AL53: жш
D54: ЗОС | H54: 0 | J54: жш | Q54: жш | X54: жш | AE54: жш | AL54: жш
D55: ЗДС | H55: 0 | J55: жш | Q55: жш | X55: жш | AE55: жш | AL55: жш
D56: ЗЧО,ТС | H56: 0 | J56: жш | Q56: жш | X56: жш | AE56: жш | AL56: жш
B57: орус тили | D57: ИЙИРИМ | H57: 0 | J57: жш | Q57: жш | X57: жш | AE57: жш | AL57: жш
H58: 0 | J58: жш | Q58: жш | X58: жш | AE58: жш | AL58: жш
B59: 81 | C59: 0.3 | D59: ЖЫЙ-Ы | E59: =SUM(E51:E58) -> 5 | H59: =SUM(H51:H58) -> 20 | I59: =SUM(I51:I58) -> 0 | J59: =SUM(J51:J58) -> 0 | K59: 0 | L59: 2 | M59: 2 | N59: 1 | O59: 0 | P59: 0 | Q59: 0 | R59: 0 | S59: 2 | T59: 2 | U59: 1 | V59: 0 | W59: 0 | X59: 0 | Y59: 0 | Z59: 2 | AA59: 2 | AB59: 1 | AC59: 0 | AD59: 0 | AE59: 0 | AF59: 0 | AG59: 2 | AH59: 2 | AI59: 1 | AJ59: 0 | AK59: 0 | AL59: =SUM(AL51:AL58) -> 0 | AM59: =SUM(AM51:AM58) -> 0
D60: ИШ КУН-Р | H60: =SUM(I59:AM59) -> 20
A61: 18 | B61: Дмитриченко Анна Сергеевна | H61: =COUNTIF(I61:AM61,"7") -> 0 | J61: жш | Q61: жш | X61: жш | AE61: жш | AL61: жш
D62: ОС | E62: 19 | H62: =SUM(I62:AM62) -> 80 | J62: жш | K62: 4 | L62: 4 | M62: 4 | N62: 3 | O62: 4 | Q62: жш | R62: 4 | S62: 4 | T62: 4 | U62: 3 | V62: 4 | X62: жш | Y62: 4 | Z62: 4 | AA62: 4 | AB62: 3 | AC62: 4 | AE62: жш | AF62: 4 | AG62: 4 | AH62: 4 | AI62: 3 | AJ62: 4 | AL62: жш | AM62: 4
D63: ДС | E63: 6 | H63: 26 | J63: жш | K63: 2 | L63: 1 | M63: 1 | N63: 1 | O63: 1 | Q63: жш | R63: 2 | S63: 1 | T63: 1 | U63: 1 | V63: 1 | X63: жш | Y63: 2 | Z63: 1 | AA63: 1 | AB63: 1 | AC63: 1 | AE63: жш | AF63: 2 | AG63: 1 | AH63: 1 | AI63: 1 | AJ63: 1 | AL63: жш | AM63: 2
B64: 2 Б | C64: сред | D64: ЧО,ТС | E64: 6 | H64: 26 | J64: жш | K64: 2 | L64: 1 | M64: 1 | N64: 1 | O64: 1 | Q64: жш | R64: 2 | S64: 1 | T64: 1 | U64: 1 | V64: 1 | X64: жш | Y64: 2 | Z64: 1 | AA64: 1 | AB64: 1 | AC64: 1 | AE64: жш | AF64: 2 | AG64: 1 | AH64: 1 | AI64: 1 | AJ64: 1 | AL64: жш | AM64: 2
D65: ЗОС | H65: 0 | J65: жш | Q65: жш | X65: жш | AE65: жш | AL65: жш
D66: ЗДС | H66: 0 | J66: жш | Q66: жш | X66: жш | AE66: жш | AL66: жш
D67: ЗЧО,ТС | H67: 0 | J67: жш | Q67: жш | X67: жш | AE67: жш | AL67: жш
B68: нач.классы | D68: ИЙИРИМ | H68: 0 | J68: жш | Q68: жш | X68: жш | AE68: жш | AL68: жш
H69: 0 | J69: жш | Q69: жш | X69: жш | AE69: жш | AL69: жш
B70: 72 | C70: 0.2 | D70: ЖЫЙ-Ы | E70: =SUM(E62:E69) -> 31 | H70: =SUM(H62:H69) -> 132 | I70: =SUM(I62:I69) -> 0 | J70: =SUM(J62:J69) -> 0 | K70: 8 | L70: 6 | M70: 6 | N70: 5 | O70: 6 | P70: 0 | Q70: 0 | R70: 8 | S70: 6 | T70: 6 | U70: 5 | V70: 6 | W70: 0 | X70: 0 | Y70: 8 | Z70: 6 | AA70: 6 | AB70: 5 | AC70: 6 | AD70: 0 | AE70: 0 | AF70: 8 | AG70: 6 | AH70: 6 | AI70: 5 | AJ70: 6 | AK70: 0 | AL70: =SUM(AL62:AL69) -> 0 | AM70: =SUM(AM62:AM69) -> 8
D71: ИШ КУН-Р | H71: =SUM(I70:AM70) -> 132
A72: 19 | B72: Дмитриченко Анна Сергеевна | H72: =COUNTIF(I72:AM72,"7") -> 0 | J72: жш | Q72: жш | X72: жш | AE72: жш | AL72: жш
D73: ОС | E73: 15 | H73: =SUM(I73:AM73) -> 63 | J73: жш | K73: 3 | L73: 3 | M73: 3 | N73: 3 | O73: 3 | Q73: жш | R73: 3 | S73: 3 | T73: 3 | U73: 3 | V73: 3 | X73: жш | Y73: 3 | Z73: 3 | AA73: 3 | AB73: 3 | AC73: 3 | AE73: жш | AF73: 3 | AG73: 3 | AH73: 3 | AI73: 3 | AJ73: 3 | AL73: жш | AM73: 3
D74: ДС | E74: 1.5 | H74: 6 | J74: жш | M74: 1.5 | Q74: жш | T74: 1.5 | X74: жш | AA74: 1.5 | AE74: жш | AH74: 1.5 | AL74: жш
B75: 0кл | C75: сред | D75: ЧО,ТС | H75: 0 | J75: жш | Q75: жш | X75: жш | AE75: жш | AL75: жш
D76: ЗОС | H76: 0 | J76: жш | Q76: жш | X76: жш | AE76: жш | AL76: жш
D77: ЗДС | H77: 0 | J77: жш | Q77: жш | X77: жш | AE77: жш | AL77: жш
D78: ЗЧО,ТС | H78: 0 | J78: жш | Q78: жш | X78: жш | AE78: жш | AL78: жш
B79: 480 час | D79: ИЙИРИМ | H79: 0 | J79: жш | Q79: жш | X79: жш | AE79: жш | AL79: жш
H80: 0 | J80: жш | Q80: жш | X80: жш | AE80: жш | AL80: жш
B81: 72 | C81: 0.2 | D81: ЖЫЙ-Ы | E81: =SUM(E73:E80) -> 16.5 | H81: =SUM(H73:H80) -> 69 | I81: =SUM(I73:I80) -> 0 | J81: =SUM(J73:J80) -> 0 | K81: 3 | L81: 3 | M81: 4.5 | N81: 3 | O81: 3 | P81: 0 | Q81: 0 | R81: 3 | S81: 3 | T81: 4.5 | U81: 3 | V81: 3 | W81: 0 | X81: 0 | Y81: 3 | Z81: 3 | AA81: 4.5 | AB81: 3 | AC81: 3 | AD81: 0 | AE81: 0 | AF81: 3 | AG81: 3 | AH81: 4.5 | AI81: 3 | AJ81: 3 | AK81: 0 | AL81: 0 | AM81: 3
D82: ИШ КУН-Р | H82: =SUM(I81:AM81) -> 69
A83: 20 | B83: Добрыднева Евгения Петровна | H83: =COUNTIF(I83:AM83,"7") -> 0 | J83: жш | Q83: жш | X83: жш | AE83: жш | AL83: жш
D84: ОС | E84: 20 | H84: =SUM(I84:AM84) -> 84 | J84: жш | K84: 4 | L84: 4 | M84: 4 | N84: 4 | O84: 4 | Q84: жш | R84: 4 | S84: 4 | T84: 4 | U84: 4 | V84: 4 | X84: жш | Y84: 4 | Z84: 4 | AA84: 4 | AB84: 4 | AC84: 4 | AE84: жш | AF84: 4 | AG84: 4 | AH84: 4 | AI84: 4 | AJ84: 4 | AL84: жш | AM84: 4
D85: ДС | E85: 4 | H85: 17 | J85: жш | K85: 1 | L85: 1 | M85: 1 | N85: 1 | Q85: жш | R85: 1 | S85: 1 | T85: 1 | U85: 1 | X85: жш | Y85: 1 | Z85: 1 | AA85: 1 | AB85: 1 | AE85: жш | AF85: 1 | AG85: 1 | AH85: 1 | AI85: 1 | AL85: жш | AM85: 1
B86: 6 В | C86: Всш | D86: ЧО,ТС | E86: 8 | H86: 34 | J86: жш | K86: 2 | L86: 2 | M86: 2 | N86: 1 | O86: 1 | Q86: жш | R86: 2 | S86: 2 | T86: 2 | U86: 1 | V86: 1 | X86: жш | Y86: 2 | Z86: 2 | AA86: 2 | AB86: 1 | AC86: 1 | AE86: жш | AF86: 2 | AG86: 2 | AH86: 2 | AI86: 1 | AJ86: 1 | AL86: жш | AM86: 2
D87: ЗОС | H87: 0 | J87: жш | Q87: жш | X87: жш | AE87: жш | AL87: жш
D88: ЗДС | H88: 0 | J88: жш | Q88: жш | X88: жш | AE88: жш | AL88: жш
D89: ЗЧО,ТС | H89: 0 | J89: жш | Q89: жш | X89: жш | AE89: жш | AL89: жш
B90: английс.язык | D90: ИЙИРИМ | H90: 0 | J90: жш | Q90: жш | X90: жш | AE90: жш | AL90: жш
H91: 0 | J91: жш | Q91: жш | X91: жш | AE91: жш | AL91: жш
B92: 67.5 | C92: 0.1 | D92: ЖЫЙ-Ы | E92: =SUM(E84:E91) -> 32 | H92: =SUM(H84:H91) -> 135 | I92: =SUM(I84:I91) -> 0 | J92: =SUM(J84:J91) -> 0 | K92: 7 | L92: 7 | M92: 7 | N92: 6 | O92: 5 | P92: 0 | Q92: 0 | R92: 7 | S92: 7 | T92: 7 | U92: 6 | V92: 5 | W92: 0 | X92: 0 | Y92: 7 | Z92: 7 | AA92: 7 | AB92: 6 | AC92: 5 | AD92: 0 | AE92: 0 | AF92: 7 | AG92: 7 | AH92: 7 | AI92: 6 | AJ92: 5 | AK92: 0 | AL92: =SUM(AL84:AL91) -> 0 | AM92: =SUM(AM84:AM91) -> 7
D93: ИШ КУН-Р | H93: =SUM(I92:AM92) -> 135
A94: 21 | B94: Добрыднева Евгения Петровна | H94: =COUNTIF(I94:AM94,"7") -> 0 | J94: жш | Q94: жш | X94: жш | AE94: жш | AL94: жш
D95: ОС | E95: 4 | H95: =SUM(I95:AM95) -> 18 | J95: жш | K95: 2 | L95: 1 | M95: 1 | Q95: жш | R95: 2 | S95: 1 | T95: 1 | X95: жш | Y95: 2 | Z95: 1 | AA95: 1 | AE95: жш | AF95: 2 | AG95: 1 | AH95: 1 | AL95: жш | AM95: 2
D96: ДС | H96: 0 | J96: жш | Q96: жш | X96: жш | AE96: жш | AL96: жш
B97: 6 В | C97: Всш | D97: ЧО,ТС | H97: 0 | J97: жш | Q97: жш | X97: жш | AE97: жш | AL97: жш
D98: ЗОС | H98: 0 | J98: жш | Q98: жш | X98: жш | AE98: жш | AL98: жш
D99: ЗДС | H99: 0 | J99: жш | Q99: жш | X99: жш | AE99: жш | AL99: жш
D100: ЗЧО,ТС | H100: 0 | J100: жш | Q100: жш | X100: жш | AE100: жш | AL100: жш
B101: английс.язык | D101: ИЙИРИМ | H101: 0 | J101: жш | Q101: жш | X101: жш | AE101: жш | AL101: жш
H102: 0 | J102: жш | Q102: жш | X102: жш | AE102: жш | AL102: жш
B103: 81 | C103: 0.1 | D103: ЖЫЙ-Ы | E103: =SUM(E95:E102) -> 4 | H103: =SUM(H95:H102) -> 18 | I103: =SUM(I95:I102) -> 0 | J103: =SUM(J95:J102) -> 0 | K103: 2 | L103: 1 | M103: 1 | N103: 0 | O103: 0 | P103: 0 | Q103: 0 | R103: 2 | S103: 1 | T103: 1 | U103: 0 | V103: 0 | W103: 0 | X103: 0 | Y103: 2 | Z103: 1 | AA103: 1 | AB103: 0 | AC103: 0 | AD103: 0 | AE103: 0 | AF103: 2 | AG103: 1 | AH103: 1 | AI103: 0 | AJ103: 0 | AK103: 0 | AL103: =SUM(AL95:AL102) -> 0 | AM103: =SUM(AM95:AM102) -> 2
D104: ИШ КУН-Р | H104: =SUM(I103:AM103) -> 18
A105: 22 | B105: Дружинина Галина Викторовна | H105: =COUNTIF(I105:AM105,"7") -> 0 | J105: жш | Q105: жш | X105: жш | AE105: жш | AL105: жш
D106: ОС | E106: 31 | H106: =SUM(I106:AM106) -> 130 | J106: жш | K106: 6 | L106: 6 | M106: 6 | N106: 6 | O106: 7 | Q106: жш | R106: 6 | S106: 6 | T106: 6 | U106: 6 | V106: 7 | X106: жш | Y106: 6 | Z106: 6 | AA106: 6 | AB106: 6 | AC106: 7 | AE106: жш | AF106: 6 | AG106: 6 | AH106: 6 | AI106: 6 | AJ106: 7 | AL106: жш | AM106: 6
D107: ДС | E107: 5 | H107: 21 | J107: жш | K107: 1 | L107: 1 | M107: 1 | N107: 1 | O107: 1 | Q107: жш | R107: 1 | S107: 1 | T107: 1 | U107: 1 | V107: 1 | X107: жш | Y107: 1 | Z107: 1 | AA107: 1 | AB107: 1 | AC107: 1 | AE107: жш | AF107: 1 | AG107: 1 | AH107: 1 | AI107: 1 | AJ107: 1 | AL107: жш | AM107: 1
B108: 6 А | C108: Всш | D108: ЧО,ТС | E108: 6 | H108: 25 | J108: жш | K108: 1 | L108: 1 | M108: 1 | N108: 1 | O108: 2 | Q108: жш | R108: 1 | S108: 1 | T108: 1 | U108: 1 | V108: 2 | X108: жш | Y108: 1 | Z108: 1 | AA108: 1 | AB108: 1 | AC108: 2 | AE108: жш | AF108: 1 | AG108: 1 | AH108: 1 | AI108: 1 | AJ108: 2 | AL108: жш | AM108: 1
D109: ЗОС | H109: 0 | J109: жш | Q109: жш | X109: жш | AE109: жш | AL109: жш
D110: ЗДС | H110: 0 | J110: жш | Q110: жш | X110: жш | AE110: жш | AL110: жш
D111: ЗЧО,ТС | H111: 0 | J111: жш | Q111: жш | X111: жш | AE111: жш | AL111: жш
B112: Химия/ОИВТ | D112: ИЙИРИМ | H112: 0 | J112: жш | Q112: жш | X112: жш | AE112: жш | AL112: жш
H113: 0 | J113: жш | Q113: жш | X113: жш | AE113: жш | AL113: жш
B114: 67.5 | C114: 0.3 | D114: ЖЫЙ-Ы | E114: =SUM(E106:E113) -> 42 | H114: =SUM(H106:H113) -> 176 | I114: =SUM(I106:I113) -> 0 | J114: =SUM(J106:J113) -> 0 | K114: 8 | L114: 8 | M114: 8 | N114: 8 | O114: 10 | P114: 0 | Q114: 0 | R114: 8 | S114: 8 | T114: 8 | U114: 8 | V114: 10 | W114: 0 | X114: 0 | Y114: 8 | Z114: 8 | AA114: 8 | AB114: 8 | AC114: 10 | AD114: 0 | AE114: 0 | AF114: 8 | AG114: 8 | AH114: 8 | AI114: 8 | AJ114: 10 | AK114: 0 | AL114: =SUM(AL106:AL113) -> 0 | AM114: =SUM(AM106:AM113) -> 8
D115: ИШ КУН-Р | H115: =SUM(I114:AM114) -> 176
A116: 23 | B116: Дубинина Евгения Ивановна | H116: =COUNTIF(I116:AM116,"7") -> 0 | J116: жш | Q116: жш | X116: жш | AE116: жш | AL116: жш
D117: ОС | E117: 20 | H117: =SUM(I117:AM117) -> 84 | J117: жш | K117: 4 | L117: 4 | M117: 3 | N117: 3 | O117: 6 | Q117: жш | R117: 4 | S117: 4 | T117: 3 | U117: 3 | V117: 6 | X117: жш | Y117: 4 | Z117: 4 | AA117: 3 | AB117: 3 | AC117: 6 | AE117: жш | AF117: 4 | AG117: 4 | AH117: 3 | AI117: 3 | AJ117: 6 | AL117: жш | AM117: 4
D118: ДС | E118: 3 | H118: 13 | J118: жш | K118: 1 | L118: 1 | O118: 1 | Q118: жш | R118: 1 | S118: 1 | V118: 1 | X118: жш | Y118: 1 | Z118: 1 | AC118: 1 | AE118: жш | AF118: 1 | AG118: 1 | AJ118: 1 | AL118: жш | AM118: 1
C119: Всш | D119: ЧО,ТС | E119: 6 | H119: 25 | J119: жш | K119: 1 | L119: 1 | M119: 1 | N119: 1 | O119: 2 | Q119: жш | R119: 1 | S119: 1 | T119: 1 | U119: 1 | V119: 2 | X119: жш | Y119: 1 | Z119: 1 | AA119: 1 | AB119: 1 | AC119: 2 | AE119: жш | AF119: 1 | AG119: 1 | AH119: 1 | AI119: 1 | AJ119: 2 | AL119: жш | AM119: 1
D120: ЗОС | H120: 0 | J120: жш | Q120: жш | X120: жш | AE120: жш | AL120: жш
D121: ЗДС | H121: 0 | J121: жш | Q121: жш | X121: жш | AE121: жш | AL121: жш
D122: ЗЧО,ТС | H122: 0 | J122: жш | Q122: жш | X122: жш | AE122: жш | AL122: жш
B123: рисование | D123: ИЙИРИМ | H123: 0 | J123: жш | Q123: жш | X123: жш | AE123: жш | AL123: жш
H124: 0 | J124: жш | Q124: жш | X124: жш | AE124: жш | AL124: жш
B125: 67.5 | C125: 0 | D125: ЖЫЙ-Ы | E125: =SUM(E117:E124) -> 29 | H125: =SUM(H117:H124) -> 122 | I125: =SUM(I117:I124) -> 0 | J125: =SUM(J117:J124) -> 0 | K125: 6 | L125: 6 | M125: 4 | N125: 4 | O125: 9 | P125: 0 | Q125: 0 | R125: 6 | S125: 6 | T125: 4 | U125: 4 | V125: 9 | W125: 0 | X125: 0 | Y125: 6 | Z125: 6 | AA125: 4 | AB125: 4 | AC125: 9 | AD125: 0 | AE125: 0 | AF125: 6 | AG125: 6 | AH125: 4 | AI125: 4 | AJ125: 9 | AK125: 0 | AL125: =SUM(AL117:AL124) -> 0 | AM125: =SUM(AM117:AM124) -> 6
D126: ИШ КУН-Р | H126: =SUM(I125:AM125) -> 122
A127: 24 | B127: Дуйшебаева Суйумкан Омушевна | H127: =COUNTIF(I127:AM127,"7") -> 0 | J127: жш | Q127: жш | X127: жш | AE127: жш | AL127: жш
D128: ОС | E128: 21 | F128: 36 | H128: =SUM(I128:AM128) -> 90 | J128: жш | K128: 6 | L128: 4 | M128: 5 | N128: 3 | O128: 3 | Q128: жш | R128: 6 | S128: 4 | T128: 5 | U128: 3 | V128: 3 | X128: жш | Y128: 6 | Z128: 4 | AA128: 5 | AB128: 3 | AC128: 3 | AE128: жш | AF128: 6 | AG128: 4 | AH128: 5 | AI128: 3 | AJ128: 3 | AL128: жш | AM128: 6
D129: ДС | E129: 4 | H129: 17 | J129: жш | K129: 1 | L129: 1 | M129: 1 | N129: 1 | Q129: жш | R129: 1 | S129: 1 | T129: 1 | U129: 1 | X129: жш | Y129: 1 | Z129: 1 | AA129: 1 | AB129: 1 | AE129: жш | AF129: 1 | AG129: 1 | AH129: 1 | AI129: 1 | AL129: жш | AM129: 1
B130: 11 А | C130: Всш | D130: ЧО,ТС | E130: 6 | H130: 26 | J130: жш | K130: 2 | L130: 1 | M130: 1 | N130: 1 | O130: 1 | Q130: жш | R130: 2 | S130: 1 | T130: 1 | U130: 1 | V130: 1 | X130: жш | Y130: 2 | Z130: 1 | AA130: 1 | AB130: 1 | AC130: 1 | AE130: жш | AF130: 2 | AG130: 1 | AH130: 1 | AI130: 1 | AJ130: 1 | AL130: жш | AM130: 2
D131: ЗОС | H131: 0 | J131: жш | Q131: жш | X131: жш | AE131: жш | AL131: жш
D132: ЗДС | H132: 0 | J132: жш | Q132: жш | X132: жш | AE132: жш | AL132: жш
D133: ЗЧО,ТС | H133: 0 | J133: жш | Q133: жш | X133: жш | AE133: жш | AL133: жш
B134: орус тили | D134: ИЙИРИМ | H134: 0 | J134: жш | Q134: жш | X134: жш | AE134: жш | AL134: жш
H135: 0 | J135: жш | Q135: жш | X135: жш | AE135: жш | AL135: жш
B136: 67.5 | C136: 0.3 | D136: ЖЫЙ-Ы | E136: =SUM(E128:E135) -> 31 | H136: =SUM(H128:H135) -> 133 | I136: =SUM(I128:I135) -> 0 | J136: =SUM(J128:J135) -> 0 | K136: 9 | L136: 6 | M136: 7 | N136: 5 | O136: 4 | P136: 0 | Q136: 0 | R136: 9 | S136: 6 | T136: 7 | U136: 5 | V136: 4 | W136: 0 | X136: 0 | Y136: 9 | Z136: 6 | AA136: 7 | AB136: 5 | AC136: 4 | AD136: 0 | AE136: 0 | AF136: 9 | AG136: 6 | AH136: 7 | AI136: 5 | AJ136: 4 | AK136: 0 | AL136: =SUM(AL128:AL135) -> 0 | AM136: =SUM(AM128:AM135) -> 9
D137: ИШ КУН-Р | H137: =SUM(I136:AM136) -> 133
A138: 25 | B138: Дуйшенова Гулсайна Саткынбаевна | H138: =COUNTIF(I138:AM138,"7") -> 0 | J138: жш | Q138: жш | X138: жш | AE138: жш | AL138: жш
D139: ОС | E139: 17 | H139: =SUM(I139:AM139) -> 72 | J139: жш | K139: 4 | L139: 4 | M139: 3 | N139: 3 | O139: 3 | Q139: жш | R139: 4 | S139: 4 | T139: 3 | U139: 3 | V139: 3 | X139: жш | Y139: 4 | Z139: 4 | AA139: 3 | AB139: 3 | AC139: 3 | AE139: жш | AF139: 4 | AG139: 4 | AH139: 3 | AI139: 3 | AJ139: 3 | AL139: жш | AM139: 4
D140: ДС | E140: 6 | H140: 26 | J140: жш | K140: 2 | L140: 1 | M140: 1 | N140: 1 | O140: 1 | Q140: жш | R140: 2 | S140: 1 | T140: 1 | U140: 1 | V140: 1 | X140: жш | Y140: 2 | Z140: 1 | AA140: 1 | AB140: 1 | AC140: 1 | AE140: жш | AF140: 2 | AG140: 1 | AH140: 1 | AI140: 1 | AJ140: 1 | AL140: жш | AM140: 2
B141: 1 Г | C141: Всш | D141: ЧО,ТС | E141: 6 | H141: 26 | J141: жш | K141: 2 | L141: 1 | M141: 1 | N141: 1 | O141: 1 | Q141: жш | R141: 2 | S141: 1 | T141: 1 | U141: 1 | V141: 1 | X141: жш | Y141: 2 | Z141: 1 | AA141: 1 | AB141: 1 | AC141: 1 | AE141: жш | AF141: 2 | AG141: 1 | AH141: 1 | AI141: 1 | AJ141: 1 | AL141: жш | AM141: 2
D142: ЗОС | H142: 0 | J142: жш | Q142: жш | X142: жш | AE142: жш | AL142: жш
D143: ЗДС | H143: 0 | J143: жш | Q143: жш | X143: жш | AE143: жш | AL143: жш
D144: ЗЧО,ТС | H144: 0 | J144: жш | Q144: жш | X144: жш | AE144: жш | AL144: жш
B145: нач.классы | D145: ИЙИРИМ | H145: 0 | J145: жш | Q145: жш | X145: жш | AE145: жш | AL145: жш
H146: 0 | J146: жш | Q146: жш | X146: жш | AE146: жш | AL146: жш
B147: 81 | C147: 0.3 | D147: ЖЫЙ-Ы | E147: =SUM(E139:E146) -> 29 | H147: =SUM(H139:H146) -> 124 | I147: =SUM(I139:I146) -> 0 | J147: =SUM(J139:J146) -> 0 | K147: 8 | L147: 6 | M147: 5 | N147: 5 | O147: 5 | P147: 0 | Q147: 0 | R147: 8 | S147: 6 | T147: 5 | U147: 5 | V147: 5 | W147: 0 | X147: 0 | Y147: 8 | Z147: 6 | AA147: 5 | AB147: 5 | AC147: 5 | AD147: 0 | AE147: 0 | AF147: 8 | AG147: 6 | AH147: 5 | AI147: 5 | AJ147: 5 | AK147: 0 | AL147: =SUM(AL139:AL146) -> 0 | AM147: =SUM(AM139:AM146) -> 8
D148: ИШ КУН-Р | H148: =SUM(I147:AM147) -> 124
